Workbook

Sheet Kalkulator Pinjaman
B2: Kalkulator Pinjaman Sederhana
K3: Label Baris | L3: Pembayaran Pinjaman Pokok | M3: Pembayaran Bunga | N3: Saldo Pinjaman
B4: Detail Pinjaman | K4: 2019 | L4: Rp316 | M4: Rp226 | N4: Rp9,937
B5: Jumlah pinjaman | D5: Rp10,000.00 | K5: 2020 | L5: Rp1,106 | M5: Rp739 | N5: Rp9,620
B6: Suku bunga tahunan | D6: 5.50% | K6: 2021 | L6: Rp1,940 | M6: Rp1,208 | N6: Rp8,826
B7: Periode pinjaman (tahun) | D7: 10 | K7: 2022 | L7: Rp2,821 | M7: Rp1,629 | N7: Rp7,989
B8: Tanggal mulai pinjaman | D8: =TODAY() -> 2019-07-18 | K8: 2023 | L8: Rp3,751 | M8: Rp2,001 | N8: Rp7,104
K9: 2024 | L9: Rp4,735 | M9: Rp2,320 | N9: Rp6,169
B10: Ringkasan Pinjaman | K10: 2025 | L10: Rp5,773 | M10: Rp2,583 | N10: Rp5,181
B11: Angsuran bulanan | D11: =IFERROR(IF(PinjamanAman,AngsuranBulanan,""), "") -> Rp108.53 | K11: 2026 | L11: Rp6,870 | M11: Rp2,788 | N11: Rp4,138
B12: Jumlah pembayaran | D12: =IFERROR(IF(PinjamanAman,TahunPinjaman*12,""), "") -> 120 | K12: 2027 | L12: Rp8,030 | M12: Rp2,932 | N12: Rp3,035
B13: Total bunga | D13: =IFERROR(IF(PinjamanAman,TotalPinjaman-JumlahPinjaman,""), "") -> Rp3,023.15 | K13: 2028 | L13: Rp9,254 | M13: Rp3,009 | N13: Rp1,871
B14: Total biaya pinjaman | D14: =IFERROR(IF(PinjamanAman,AngsuranBulanan*JumlahPembayaran,""), "") -> Rp13,023.15 | K14: 2029 | L14: Rp10,000 | M14: Rp3,023 | N14: Rp641
K15: Total Keseluruhan | N15: Rp9,937
B16: No. Pmbyrn | C16: Tanggal Pembayaran | D16: Saldo Awal | E16: Pembayaran | F16: Pinjaman Pokok | G16: Bunga | H16: Saldo Akhir
B17: =IFERROR(IF(PinjamanBelumDibayar*PinjamanAman,NomorPembayaran,""), "") -> 1 | C17: =IFERROR(IF(PinjamanBelumDibayar*PinjamanAman,TanggalPembayaran,TanggalMulaiPinjaman), TanggalMulaiPinjaman) -> 2019-08-18 | D17: =IFERROR(IF(PinjamanBelumDibayar*PinjamanAman,NilaiPinjaman,""), "") -> Rp10,000.00 | E17: =IFERROR(IF(PinjamanBelumDibayar*PinjamanAman,AngsuranBulanan,0), 0) -> Rp108.53 | F17: =IFERROR(IF(PinjamanBelumDibayar*PinjamanAman,Pinjaman_Pokok,0), 0) -> Rp62.69 | G17: =IFERROR(IF(PinjamanBelumDibayar*PinjamanAman,JmlBunga,0), 0) -> Rp45.83 | H17: =IFERROR(IF(PinjamanBelumDibayar*PinjamanAman,SaldoAkhir,0), 0) -> Rp9,937.31
B18: =IFERROR(IF(PinjamanBelumDibayar*PinjamanAman,NomorPembayaran,""), "") -> 2 | C18: =IFERROR(IF(PinjamanBelumDibayar*PinjamanAman,TanggalPembayaran,TanggalMulaiPinjaman), TanggalMulaiPinjaman) -> 2019-09-18 | D18: =IFERROR(IF(PinjamanBelumDibayar*PinjamanAman,NilaiPinjaman,""), "") -> Rp9,937.31 | E18: =IFERROR(IF(PinjamanBelumDibayar*PinjamanAman,AngsuranBulanan,0), 0) -> Rp108.53 | F18: =IFERROR(IF(PinjamanBelumDibayar*PinjamanAman,Pinjaman_Pokok,0), 0) -> Rp62.98 | G18: =IFERROR(IF(PinjamanBelumDibayar*PinjamanAman,JmlBunga,0), 0) -> Rp45.55 | H18: =IFERROR(IF(PinjamanBelumDibayar*PinjamanAman,SaldoAkhir,0), 0) -> Rp9,874.33
B19: =IFERROR(IF(PinjamanBelumDibayar*PinjamanAman,NomorPembayaran,""), "") -> 3 | C19: =IFERROR(IF(PinjamanBelumDibayar*PinjamanAman,TanggalPembayaran,TanggalMulaiPinjaman), TanggalMulaiPinjaman) -> 2019-10-18 | D19: =IFERROR(IF(PinjamanBelumDibayar*PinjamanAman,NilaiPinjaman,""), "") -> Rp9,874.33 | E19: =IFERROR(IF(PinjamanBelumDibayar*PinjamanAman,AngsuranBulanan,0), 0) -> Rp108.53 | F19: =IFERROR(IF(PinjamanBelumDibayar*PinjamanAman,Pinjaman_Pokok,0), 0) -> Rp63.27 | G19: =IFERROR(IF(PinjamanBelumDibayar*PinjamanAman,JmlBunga,0), 0) -> Rp45.26 | H19: =IFERROR(IF(PinjamanBelumDibayar*PinjamanAman,SaldoAkhir,0), 0) -> Rp9,811.06
B20: =IFERROR(IF(PinjamanBelumDibayar*PinjamanAman,NomorPembayaran,""), "") -> 4 | C20: =IFERROR(IF(PinjamanBelumDibayar*PinjamanAman,TanggalPembayaran,TanggalMulaiPinjaman), TanggalMulaiPinjaman) -> 2019-11-18 | D20: =IFERROR(IF(PinjamanBelumDibayar*PinjamanAman,NilaiPinjaman,""), "") -> Rp9,811.06 | E20: =IFERROR(IF(PinjamanBelumDibayar*PinjamanAman,AngsuranBulanan,0), 0) -> Rp108.53 | F20: =IFERROR(IF(PinjamanBelumDibayar*PinjamanAman,Pinjaman_Pokok,0), 0) -> Rp63.56 | G20: =IFERROR(IF(PinjamanBelumDibayar*PinjamanAman,JmlBunga,0), 0) -> Rp44.97 | H20: =IFERROR(IF(PinjamanBelumDibayar*PinjamanAman,SaldoAkhir,0), 0) -> Rp9,747.50
B21: =IFERROR(IF(PinjamanBelumDibayar*PinjamanAman,NomorPembayaran,""), "") -> 5 | C21: =IFERROR(IF(PinjamanBelumDibayar*PinjamanAman,TanggalPembayaran,TanggalMulaiPinjaman), TanggalMulaiPinjaman) -> 2019-12-18 | D21: =IFERROR(IF(PinjamanBelumDibayar*PinjamanAman,NilaiPinjaman,""), "") -> Rp9,747.50 | E21: =IFERROR(IF(PinjamanBelumDibayar*PinjamanAman,AngsuranBulanan,0), 0) -> Rp108.53 | F21: =IFERROR(IF(PinjamanBelumDibayar*PinjamanAman,Pinjaman_Pokok,0), 0) -> Rp63.85 | G21: =IFERROR(IF(PinjamanBelumDibayar*PinjamanAman,JmlBunga,0), 0) -> Rp44.68 | H21: =IFERROR(IF(PinjamanBelumDibayar*PinjamanAman,SaldoAkhir,0), 0) -> Rp9,683.65
B22: =IFERROR(IF(PinjamanBelumDibayar*PinjamanAman,NomorPembayaran,""), "") -> 6 | C22: =IFERROR(IF(PinjamanBelumDibayar*PinjamanAman,TanggalPembayaran,TanggalMulaiPinjaman), TanggalMulaiPinjaman) -> 2020-01-18 | D22: =IFERROR(IF(PinjamanBelumDibayar*PinjamanAman,NilaiPinjaman,""), "") -> Rp9,683.65 | E22: =IFERROR(IF(PinjamanBelumDibayar*PinjamanAman,AngsuranBulanan,0), 0) -> Rp108.53 | F22: =IFERROR(IF(PinjamanBelumDibayar*PinjamanAman,Pinjaman_Pokok,0), 0) -> Rp64.14 | G22: =IFERROR(IF(PinjamanBelumDibayar*PinjamanAman,JmlBunga,0), 0) -> Rp44.38 | H22: =IFERROR(IF(PinjamanBelumDibayar*PinjamanAman,SaldoAkhir,0), 0) -> Rp9,619.51
B23: =IFERROR(IF(PinjamanBelumDibayar*PinjamanAman,NomorPembayaran,""), "") -> 7 | C23: =IFERROR(IF(PinjamanBelumDibayar*PinjamanAman,TanggalPembayaran,TanggalMulaiPinjaman), TanggalMulaiPinjaman) -> 2020-02-18 | D23: =IFERROR(IF(PinjamanBelumDibayar*PinjamanAman,NilaiPinjaman,""), "") -> Rp9,619.51 | E23: =IFERROR(IF(PinjamanBelumDibayar*PinjamanAman,AngsuranBulanan,0), 0) -> Rp108.53 | F23: =IFERROR(IF(PinjamanBelumDibayar*PinjamanAman,Pinjaman_Pokok,0), 0) -> Rp64.44 | G23: =IFERROR(IF(PinjamanBelumDibayar*PinjamanAman,JmlBunga,0), 0) -> Rp44.09 | H23: =IFERROR(IF(PinjamanBelumDibayar*PinjamanAman,SaldoAkhir,0), 0) -> Rp9,555.07
B24: =IFERROR(IF(PinjamanBelumDibayar*PinjamanAman,NomorPembayaran,""), "") -> 8 | C24: =IFERROR(IF(PinjamanBelumDibayar*PinjamanAman,TanggalPembayaran,TanggalMulaiPinjaman), TanggalMulaiPinjaman) -> 2020-03-18 | D24: =IFERROR(IF(PinjamanBelumDibayar*PinjamanAman,NilaiPinjaman,""), "") -> Rp9,555.07 | E24: =IFERROR(IF(PinjamanBelumDibayar*PinjamanAman,AngsuranBulanan,0), 0) -> Rp108.53 | F24: =IFERROR(IF(PinjamanBelumDibayar*PinjamanAman,Pinjaman_Pokok,0), 0) -> Rp64.73 | G24: =IFERROR(IF(PinjamanBelumDibayar*PinjamanAman,JmlBunga,0), 0) -> Rp43.79 | H24: =IFERROR(IF(PinjamanBelumDibayar*PinjamanAman,SaldoAkhir,0), 0) -> Rp9,490.34
B25: =IFERROR(IF(PinjamanBelumDibayar*PinjamanAman,NomorPembayaran,""), "") -> 9 | C25: =IFERROR(IF(PinjamanBelumDibayar*PinjamanAman,TanggalPembayaran,TanggalMulaiPinjaman), TanggalMulaiPinjaman) -> 2020-04-18 | D25: =IFERROR(IF(PinjamanBelumDibayar*PinjamanAman,NilaiPinjaman,""), "") -> Rp9,490.34 | E25: =IFERROR(IF(PinjamanBelumDibayar*PinjamanAman,AngsuranBulanan,0), 0) -> Rp108.53 | F25: =IFERROR(IF(PinjamanBelumDibayar*PinjamanAman,Pinjaman_Pokok,0), 0) -> Rp65.03 | G25: =IFERROR(IF(PinjamanBelumDibayar*PinjamanAman,JmlBunga,0), 0) -> Rp43.50 | H25: =IFERROR(IF(PinjamanBelumDibayar*PinjamanAman,SaldoAkhir,0), 0) -> Rp9,425.31
B26: =IFERROR(IF(PinjamanBelumDibayar*PinjamanAman,NomorPembayaran,""), "") -> 10 | C26: =IFERROR(IF(PinjamanBelumDibayar*PinjamanAman,TanggalPembayaran,TanggalMulaiPinjaman), TanggalMulaiPinjaman) -> 2020-05-18 | D26: =IFERROR(IF(PinjamanBelumDibayar*PinjamanAman,NilaiPinjaman,""), "") -> Rp9,425.31 | E26: =IFERROR(IF(PinjamanBelumDibayar*PinjamanAman,AngsuranBulanan,0), 0) -> Rp108.53 | F26: =IFERROR(IF(PinjamanBelumDibayar*PinjamanAman,Pinjaman_Pokok,0), 0) -> Rp65.33 | G26: =IFERROR(IF(PinjamanBelumDibayar*PinjamanAman,JmlBunga,0), 0) -> Rp43.20 | H26: =IFERROR(IF(PinjamanBelumDibayar*PinjamanAman,SaldoAkhir,0), 0) -> Rp9,359.98
B27: =IFERROR(IF(PinjamanBelumDibayar*PinjamanAman,NomorPembayaran,""), "") -> 11 | C27: =IFERROR(IF(PinjamanBelumDibayar*PinjamanAman,TanggalPembayaran,TanggalMulaiPinjaman), TanggalMulaiPinjaman) -> 2020-06-18 | D27: =IFERROR(IF(PinjamanBelumDibayar*PinjamanAman,NilaiPinjaman,""), "") -> Rp9,359.98 | E27: =IFERROR(IF(PinjamanBelumDibayar*PinjamanAman,AngsuranBulanan,0), 0) -> Rp108.53 | F27: =IFERROR(IF(PinjamanBelumDibayar*PinjamanAman,Pinjaman_Pokok,0), 0) -> Rp65.63 | G27: =IFERROR(IF(PinjamanBelumDibayar*PinjamanAman,JmlBunga,0), 0) -> Rp42.90 | H27: =IFERROR(IF(PinjamanBelumDibayar*PinjamanAman,SaldoAkhir,0), 0) -> Rp9,294.35
B28: =IFERROR(IF(PinjamanBelumDibayar*PinjamanAman,NomorPembayaran,""), "") -> 12 | C28: =IFERROR(IF(PinjamanBelumDibayar*PinjamanAman,TanggalPembayaran,TanggalMulaiPinjaman), TanggalMulaiPinjaman) -> 2020-07-18 | D28: =IFERROR(IF(PinjamanBelumDibayar*PinjamanAman,NilaiPinjaman,""), "") -> Rp9,294.35 | E28: =IFERROR(IF(PinjamanBelumDibayar*PinjamanAman,AngsuranBulanan,0), 0) -> Rp108.53 | F28: =IFERROR(IF(PinjamanBelumDibayar*PinjamanAman,Pinjaman_Pokok,0), 0) -> Rp65.93 | G28: =IFERROR(IF(PinjamanBelumDibayar*PinjamanAman,JmlBunga,0), 0) -> Rp42.60 | H28: =IFERROR(IF(PinjamanBelumDibayar*PinjamanAman,SaldoAkhir,0), 0) -> Rp9,228.43
B29: =IFERROR(IF(PinjamanBelumDibayar*PinjamanAman,NomorPembayaran,""), "") -> 13 | C29: =IFERROR(IF(PinjamanBelumDibayar*PinjamanAman,TanggalPembayaran,TanggalMulaiPinjaman), TanggalMulaiPinjaman) -> 2020-08-18 | D29: =IFERROR(IF(PinjamanBelumDibayar*PinjamanAman,NilaiPinjaman,""), "") -> Rp9,228.43 | E29: =IFERROR(IF(PinjamanBelumDibayar*PinjamanAman,AngsuranBulanan,0), 0) -> Rp108.53 | F29: =IFERROR(IF(PinjamanBelumDibayar*PinjamanAman,Pinjaman_Pokok,0), 0) -> Rp66.23 | G29: =IFERROR(IF(PinjamanBelumDibayar*PinjamanAman,JmlBunga,0), 0) -> Rp42.30 | H29: =IFERROR(IF(PinjamanBelumDibayar*PinjamanAman,SaldoAkhir,0), 0) -> Rp9,162.20
B30: =IFERROR(IF(PinjamanBelumDibayar*PinjamanAman,NomorPembayaran,""), "") -> 14 | C30: =IFERROR(IF(PinjamanBelumDibayar*PinjamanAman,TanggalPembayaran,TanggalMulaiPinjaman), TanggalMulaiPinjaman) -> 2020-09-18 | D30: =IFERROR(IF(PinjamanBelumDibayar*PinjamanAman,NilaiPinjaman,""), "") -> Rp9,162.20 | E30: =IFERROR(IF(PinjamanBelumDibayar*PinjamanAman,AngsuranBulanan,0), 0) -> Rp108.53 | F30: =IFERROR(IF(PinjamanBelumDibayar*PinjamanAman,Pinjaman_Pokok,0), 0) -> Rp66.53 | G30: =IFERROR(IF(PinjamanBelumDibayar*PinjamanAman,JmlBunga,0), 0) -> Rp41.99 | H30: =IFERROR(IF(PinjamanBelumDibayar*PinjamanAman,SaldoAkhir,0), 0) -> Rp9,095.67
B31: =IFERROR(IF(PinjamanBelumDibayar*PinjamanAman,NomorPembayaran,""), "") -> 15 | C31: =IFERROR(IF(PinjamanBelumDibayar*PinjamanAman,TanggalPembayaran,TanggalMulaiPinjaman), TanggalMulaiPinjaman) -> 2020-10-18 | D31: =IFERROR(IF(PinjamanBelumDibayar*PinjamanAman,NilaiPinjaman,""), "") -> Rp9,095.67 | E31: =IFERROR(IF(PinjamanBelumDibayar*PinjamanAman,AngsuranBulanan,0), 0) -> Rp108.53 | F31: =IFERROR(IF(PinjamanBelumDibayar*PinjamanAman,Pinjaman_Pokok,0), 0) -> Rp66.84 | G31: =IFERROR(IF(PinjamanBelumDibayar*PinjamanAman,JmlBunga,0), 0) -> Rp41.69 | H31: =IFERROR(IF(PinjamanBelumDibayar*PinjamanAman,SaldoAkhir,0), 0) -> Rp9,028.83
B32: =IFERROR(IF(PinjamanBelumDibayar*PinjamanAman,NomorPembayaran,""), "") -> 16 | C32: =IFERROR(IF(PinjamanBelumDibayar*PinjamanAman,TanggalPembayaran,TanggalMulaiPinjaman), TanggalMulaiPinjaman) -> 2020-11-18 | D32: =IFERROR(IF(PinjamanBelumDibayar*PinjamanAman,NilaiPinjaman,""), "") -> Rp9,028.83 | E32: =IFERROR(IF(PinjamanBelumDibayar*PinjamanAman,AngsuranBulanan,0), 0) -> Rp108.53 | F32: =IFERROR(IF(PinjamanBelumDibayar*PinjamanAman,Pinjaman_Pokok,0), 0) -> Rp67.14 | G32: =IFERROR(IF(PinjamanBelumDibayar*PinjamanAman,JmlBunga,0), 0) -> Rp41.38 | H32: =IFERROR(IF(PinjamanBelumDibayar*PinjamanAman,SaldoAkhir,0), 0) -> Rp8,961.68
B33: =IFERROR(IF(PinjamanBelumDibayar*PinjamanAman,NomorPembayaran,""), "") -> 17 | C33: =IFERROR(IF(PinjamanBelumDibayar*PinjamanAman,TanggalPembayaran,TanggalMulaiPinjaman), TanggalMulaiPinjaman) -> 2020-12-18 | D33: =IFERROR(IF(PinjamanBelumDibayar*PinjamanAman,NilaiPinjaman,""), "") -> Rp8,961.68 | E33: =IFERROR(IF(PinjamanBelumDibayar*PinjamanAman,AngsuranBulanan,0), 0) -> Rp108.53 | F33: =IFERROR(IF(PinjamanBelumDibayar*PinjamanAman,Pinjaman_Pokok,0), 0) -> Rp67.45 | G33: =IFERROR(IF(PinjamanBelumDibayar*PinjamanAman,JmlBunga,0), 0) -> Rp41.07 | H33: =IFERROR(IF(PinjamanBelumDibayar*PinjamanAman,SaldoAkhir,0), 0) -> Rp8,894.23
B34: =IFERROR(IF(PinjamanBelumDibayar*PinjamanAman,NomorPembayaran,""), "") -> 18 | C34: =IFERROR(IF(PinjamanBelumDibayar*PinjamanAman,TanggalPembayaran,TanggalMulaiPinjaman), TanggalMulaiPinjaman) -> 2021-01-18 | D34: =IFERROR(IF(PinjamanBelumDibayar*PinjamanAman,NilaiPinjaman,""), "") -> Rp8,894.23 | E34: =IFERROR(IF(PinjamanBelumDibayar*PinjamanAman,AngsuranBulanan,0), 0) -> Rp108.53 | F34: =IFERROR(IF(PinjamanBelumDibayar*PinjamanAman,Pinjaman_Pokok,0), 0) -> Rp67.76 | G34: =IFERROR(IF(PinjamanBelumDibayar*PinjamanAman,JmlBunga,0), 0) -> Rp40.77 | H34: =IFERROR(IF(PinjamanBelumDibayar*PinjamanAman,SaldoAkhir,0), 0) -> Rp8,826.47
B35: =IFERROR(IF(PinjamanBelumDibayar*PinjamanAman,NomorPembayaran,""), "") -> 19 | C35: =IFERROR(IF(PinjamanBelumDibayar*PinjamanAman,TanggalPembayaran,TanggalMulaiPinjaman), TanggalMulaiPinjaman) -> 2021-02-18 | D35: =IFERROR(IF(PinjamanBelumDibayar*PinjamanAman,NilaiPinjaman,""), "") -> Rp8,826.47 | E35: =IFERROR(IF(PinjamanBelumDibayar*PinjamanAman,AngsuranBulanan,0), 0) -> Rp108.53 | F35: =IFERROR(IF(PinjamanBelumDibayar*PinjamanAman,Pinjaman_Pokok,0), 0) -> Rp68.07 | G35: =IFERROR(IF(PinjamanBelumDibayar*PinjamanAman,JmlBunga,0), 0) -> Rp40.45 | H35: =IFERROR(IF(PinjamanBelumDibayar*PinjamanAman,SaldoAkhir,0), 0) -> Rp8,758.40
B36: =IFERROR(IF(PinjamanBelumDibayar*PinjamanAman,NomorPembayaran,""), "") -> 20 | C36: =IFERROR(IF(PinjamanBelumDibayar*PinjamanAman,TanggalPembayaran,TanggalMulaiPinjaman), TanggalMulaiPinjaman) -> 2021-03-18 | D36: =IFERROR(IF(PinjamanBelumDibayar*PinjamanAman,NilaiPinjaman,""), "") -> Rp8,758.40 | E36: =IFERROR(IF(PinjamanBelumDibayar*PinjamanAman,AngsuranBulanan,0), 0) -> Rp108.53 | F36: =IFERROR(IF(PinjamanBelumDibayar*PinjamanAman,Pinjaman_Pokok,0), 0) -> Rp68.38 | G36: =IFERROR(IF(PinjamanBelumDibayar*PinjamanAman,JmlBunga,0), 0) -> Rp40.14 | H36: =IFERROR(IF(PinjamanBelumDibayar*PinjamanAman,SaldoAkhir,0), 0) -> Rp8,690.01
B37: =IFERROR(IF(PinjamanBelumDibayar*PinjamanAman,NomorPembayaran,""), "") -> 21 | C37: =IFERROR(IF(PinjamanBelumDibayar*PinjamanAman,TanggalPembayaran,TanggalMulaiPinjaman), TanggalMulaiPinjaman) -> 2021-04-18 | D37: =IFERROR(IF(PinjamanBelumDibayar*PinjamanAman,NilaiPinjaman,""), "") -> Rp8,690.01 | E37: =IFERROR(IF(PinjamanBelumDibayar*PinjamanAman,AngsuranBulanan,0), 0) -> Rp108.53 | F37: =IFERROR(IF(PinjamanBelumDibayar*PinjamanAman,Pinjaman_Pokok,0), 0) -> Rp68.70 | G37: =IFERROR(IF(PinjamanBelumDibayar*PinjamanAman,JmlBunga,0), 0) -> Rp39.83 | H37: =IFERROR(IF(PinjamanBelumDibayar*PinjamanAman,SaldoAkhir,0), 0) -> Rp8,621.32
B38: =IFERROR(IF(PinjamanBelumDibayar*PinjamanAman,NomorPembayaran,""), "") -> 22 | C38: =IFERROR(IF(PinjamanBelumDibayar*PinjamanAman,TanggalPembayaran,TanggalMulaiPinjaman), TanggalMulaiPinjaman) -> 2021-05-18 | D38: =IFERROR(IF(PinjamanBelumDibayar*PinjamanAman,NilaiPinjaman,""), "") -> Rp8,621.32 | E38: =IFERROR(IF(PinjamanBelumDibayar*PinjamanAman,AngsuranBulanan,0), 0) -> Rp108.53 | F38: =IFERROR(IF(PinjamanBelumDibayar*PinjamanAman,Pinjaman_Pokok,0), 0) -> Rp69.01 | G38: =IFERROR(IF(PinjamanBelumDibayar*PinjamanAman,JmlBunga,0), 0) -> Rp39.51 | H38: =IFERROR(IF(PinjamanBelumDibayar*PinjamanAman,SaldoAkhir,0), 0) -> Rp8,552.31
B39: =IFERROR(IF(PinjamanBelumDibayar*PinjamanAman,NomorPembayaran,""), "") -> 23 | C39: =IFERROR(IF(PinjamanBelumDibayar*PinjamanAman,TanggalPembayaran,TanggalMulaiPinjaman), TanggalMulaiPinjaman) -> 2021-06-18 | D39: =IFERROR(IF(PinjamanBelumDibayar*PinjamanAman,NilaiPinjaman,""), "") -> Rp8,552.31 | E39: =IFERROR(IF(PinjamanBelumDibayar*PinjamanAman,AngsuranBulanan,0), 0) -> Rp108.53 | F39: =IFERROR(IF(PinjamanBelumDibayar*PinjamanAman,Pinjaman_Pokok,0), 0) -> Rp69.33 | G39: =IFERROR(IF(PinjamanBelumDibayar*PinjamanAman,JmlBunga,0), 0) -> Rp39.20 | H39: =IFERROR(IF(PinjamanBelumDibayar*PinjamanAman,SaldoAkhir,0), 0) -> Rp8,482.98
B40: =IFERROR(IF(PinjamanBelumDibayar*PinjamanAman,NomorPembayaran,""), "") -> 24 | C40: =IFERROR(IF(PinjamanBelumDibayar*PinjamanAman,TanggalPembayaran,TanggalMulaiPinjaman), TanggalMulaiPinjaman) -> 2021-07-18 | D40: =IFERROR(IF(PinjamanBelumDibayar*PinjamanAman,NilaiPinjaman,""), "") -> Rp8,482.98 | E40: =IFERROR(IF(PinjamanBelumDibayar*PinjamanAman,AngsuranBulanan,0), 0) -> Rp108.53 | F40: =IFERROR(IF(PinjamanBelumDibayar*PinjamanAman,Pinjaman_Pokok,0), 0) -> Rp69.65 | G40: =IFERROR(IF(PinjamanBelumDibayar*PinjamanAman,JmlBunga,0), 0) -> Rp38.88 | H40: =IFERROR(IF(PinjamanBelumDibayar*PinjamanAman,SaldoAkhir,0), 0) -> Rp8,413.33
B41: =IFERROR(IF(PinjamanBelumDibayar*PinjamanAman,NomorPembayaran,""), "") -> 25 | C41: =IFERROR(IF(PinjamanBelumDibayar*PinjamanAman,TanggalPembayaran,TanggalMulaiPinjaman), TanggalMulaiPinjaman) -> 2021-08-18 | D41: =IFERROR(IF(PinjamanBelumDibayar*PinjamanAman,NilaiPinjaman,""), "") -> Rp8,413.33 | E41: =IFERROR(IF(PinjamanBelumDibayar*PinjamanAman,AngsuranBulanan,0), 0) -> Rp108.53 | F41: =IFERROR(IF(PinjamanBelumDibayar*PinjamanAman,Pinjaman_Pokok,0), 0) -> Rp69.97 | G41: =IFERROR(IF(PinjamanBelumDibayar*PinjamanAman,JmlBunga,0), 0) -> Rp38.56 | H41: =IFERROR(IF(PinjamanBelumDibayar*PinjamanAman,SaldoAkhir,0), 0) -> Rp8,343.37
B42: =IFERROR(IF(PinjamanBelumDibayar*PinjamanAman,NomorPembayaran,""), "") -> 26 | C42: =IFERROR(IF(PinjamanBelumDibayar*PinjamanAman,TanggalPembayaran,TanggalMulaiPinjaman), TanggalMulaiPinjaman) -> 2021-09-18 | D42: =IFERROR(IF(PinjamanBelumDibayar*PinjamanAman,NilaiPinjaman,""), "") -> Rp8,343.37 | E42: =IFERROR(IF(PinjamanBelumDibayar*PinjamanAman,AngsuranBulanan,0), 0) -> Rp108.53 | F42: =IFERROR(IF(PinjamanBelumDibayar*PinjamanAman,Pinjaman_Pokok,0), 0) -> Rp70.29 | G42: =IFERROR(IF(PinjamanBelumDibayar*PinjamanAman,JmlBunga,0), 0) -> Rp38.24 | H42: =IFERROR(IF(PinjamanBelumDibayar*PinjamanAman,SaldoAkhir,0), 0) -> Rp8,273.08
B43: =IFERROR(IF(PinjamanBelumDibayar*PinjamanAman,NomorPembayaran,""), "") -> 27 | C43: =IFERROR(IF(PinjamanBelumDibayar*PinjamanAman,TanggalPembayaran,TanggalMulaiPinjaman), TanggalMulaiPinjaman) -> 2021-10-18 | D43: =IFERROR(IF(PinjamanBelumDibayar*PinjamanAman,NilaiPinjaman,""), "") -> Rp8,273.08 | E43: =IFERROR(IF(PinjamanBelumDibayar*PinjamanAman,AngsuranBulanan,0), 0) -> Rp108.53 | F43: =IFERROR(IF(PinjamanBelumDibayar*PinjamanAman,Pinjaman_Pokok,0), 0) -> Rp70.61 | G43: =IFERROR(IF(PinjamanBelumDibayar*PinjamanAman,JmlBunga,0), 0) -> Rp37.92 | H43: =IFERROR(IF(PinjamanBelumDibayar*PinjamanAman,SaldoAkhir,0), 0) -> Rp8,202.47
B44: =IFERROR(IF(PinjamanBelumDibayar*PinjamanAman,NomorPembayaran,""), "") -> 28 | C44: =IFERROR(IF(PinjamanBelumDibayar*PinjamanAman,TanggalPembayaran,TanggalMulaiPinjaman), TanggalMulaiPinjaman) -> 2021-11-18 | D44: =IFERROR(IF(PinjamanBelumDibayar*PinjamanAman,NilaiPinjaman,""), "") -> Rp8,202.47 | E44: =IFERROR(IF(PinjamanBelumDibayar*PinjamanAman,AngsuranBulanan,0), 0) -> Rp108.53 | F44: =IFERROR(IF(PinjamanBelumDibayar*PinjamanAman,Pinjaman_Pokok,0), 0) -> Rp70.93 | G44: =IFERROR(IF(PinjamanBelumDibayar*PinjamanAman,JmlBunga,0), 0) -> Rp37.59 | H44: =IFERROR(IF(PinjamanBelumDibayar*PinjamanAman,SaldoAkhir,0), 0) -> Rp8,131.54
B45: =IFERROR(IF(PinjamanBelumDibayar*PinjamanAman,NomorPembayaran,""), "") -> 29 | C45: =IFERROR(IF(PinjamanBelumDibayar*PinjamanAman,TanggalPembayaran,TanggalMulaiPinjaman), TanggalMulaiPinjaman) -> 2021-12-18 | D45: =IFERROR(IF(PinjamanBelumDibayar*PinjamanAman,NilaiPinjaman,""), "") -> Rp8,131.54 | E45: =IFERROR(IF(PinjamanBelumDibayar*PinjamanAman,AngsuranBulanan,0), 0) -> Rp108.53 | F45: =IFERROR(IF(PinjamanBelumDibayar*PinjamanAman,Pinjaman_Pokok,0), 0) -> Rp71.26 | G45: =IFERROR(IF(PinjamanBelumDibayar*PinjamanAman,JmlBunga,0), 0) -> Rp37.27 | H45: =IFERROR(IF(PinjamanBelumDibayar*PinjamanAman,SaldoAkhir,0), 0) -> Rp8,060.28
B46: =IFERROR(IF(PinjamanBelumDibayar*PinjamanAman,NomorPembayaran,""), "") -> 30 | C46: =IFERROR(IF(PinjamanBelumDibayar*PinjamanAman,TanggalPembayaran,TanggalMulaiPinjaman), TanggalMulaiPinjaman) -> 2022-01-18 | D46: =IFERROR(IF(PinjamanBelumDibayar*PinjamanAman,NilaiPinjaman,""), "") -> Rp8,060.28 | E46: =IFERROR(IF(PinjamanBelumDibayar*PinjamanAman,AngsuranBulanan,0), 0) -> Rp108.53 | F46: =IFERROR(IF(PinjamanBelumDibayar*PinjamanAman,Pinjaman_Pokok,0), 0) -> Rp71.58 | G46: =IFERROR(IF(PinjamanBelumDibayar*PinjamanAman,JmlBunga,0), 0) -> Rp36.94 | H46: =IFERROR(IF(PinjamanBelumDibayar*PinjamanAman,SaldoAkhir,0), 0) -> Rp7,988.70
B47: =IFERROR(IF(PinjamanBelumDibayar*PinjamanAman,NomorPembayaran,""), "") -> 31 | C47: =IFERROR(IF(PinjamanBelumDibayar*PinjamanAman,TanggalPembayaran,TanggalMulaiPinjaman), TanggalMulaiPinjaman) -> 2022-02-18 | D47: =IFERROR(IF(PinjamanBelumDibayar*PinjamanAman,NilaiPinjaman,""), "") -> Rp7,988.70 | E47: =IFERROR(IF(PinjamanBelumDibayar*PinjamanAman,AngsuranBulanan,0), 0) -> Rp108.53 | F47: =IFERROR(IF(PinjamanBelumDibayar*PinjamanAman,Pinjaman_Pokok,0), 0) -> Rp71.91 | G47: =IFERROR(IF(PinjamanBelumDibayar*PinjamanAman,JmlBunga,0), 0) -> Rp36.61 | H47: =IFERROR(IF(PinjamanBelumDibayar*PinjamanAman,SaldoAkhir,0), 0) -> Rp7,916.79
B48: =IFERROR(IF(PinjamanBelumDibayar*PinjamanAman,NomorPembayaran,""), "") -> 32 | C48: =IFERROR(IF(PinjamanBelumDibayar*PinjamanAman,TanggalPembayaran,TanggalMulaiPinjaman), TanggalMulaiPinjaman) -> 2022-03-18 | D48: =IFERROR(IF(PinjamanBelumDibayar*PinjamanAman,NilaiPinjaman,""), "") -> Rp7,916.79 | E48: =IFERROR(IF(PinjamanBelumDibayar*PinjamanAman,AngsuranBulanan,0), 0) -> Rp108.53 | F48: =IFERROR(IF(PinjamanBelumDibayar*PinjamanAman,Pinjaman_Pokok,0), 0) -> Rp72.24 | G48: =IFERROR(IF(PinjamanBelumDibayar*PinjamanAman,JmlBunga,0), 0) -> Rp36.29 | H48: =IFERROR(IF(PinjamanBelumDibayar*PinjamanAman,SaldoAkhir,0), 0) -> Rp7,844.55
B49: =IFERROR(IF(PinjamanBelumDibayar*PinjamanAman,NomorPembayaran,""), "") -> 33 | C49: =IFERROR(IF(PinjamanBelumDibayar*PinjamanAman,TanggalPembayaran,TanggalMulaiPinjaman), TanggalMulaiPinjaman) -> 2022-04-18 | D49: =IFERROR(IF(PinjamanBelumDibayar*PinjamanAman,NilaiPinjaman,""), "") -> Rp7,844.55 | E49: =IFERROR(IF(PinjamanBelumDibayar*PinjamanAman,AngsuranBulanan,0), 0) -> Rp108.53 | F49: =IFERROR(IF(PinjamanBelumDibayar*PinjamanAman,Pinjaman_Pokok,0), 0) -> Rp72.57 | G49: =IFERROR(IF(PinjamanBelumDibayar*PinjamanAman,JmlBunga,0), 0) -> Rp35.95 | H49: =IFERROR(IF(PinjamanBelumDibayar*PinjamanAman,SaldoAkhir,0), 0) -> Rp7,771.98
B50: =IFERROR(IF(PinjamanBelumDibayar*PinjamanAman,NomorPembayaran,""), "") -> 34 | C50: =IFERROR(IF(PinjamanBelumDibayar*PinjamanAman,TanggalPembayaran,TanggalMulaiPinjaman), TanggalMulaiPinjaman) -> 2022-05-18 | D50: =IFERROR(IF(PinjamanBelumDibayar*PinjamanAman,NilaiPinjaman,""), "") -> Rp7,771.98 | E50: =IFERROR(IF(PinjamanBelumDibayar*PinjamanAman,AngsuranBulanan,0), 0) -> Rp108.53 | F50: =IFERROR(IF(PinjamanBelumDibayar*PinjamanAman,Pinjaman_Pokok,0), 0) -> Rp72.90 | G50: =IFERROR(IF(PinjamanBelumDibayar*PinjamanAman,JmlBunga,0), 0) -> Rp35.62 | H50: =IFERROR(IF(PinjamanBelumDibayar*PinjamanAman,SaldoAkhir,0), 0) -> Rp7,699.07
B51: =IFERROR(IF(PinjamanBelumDibayar*PinjamanAman,NomorPembayaran,""), "") -> 35 | C51: =IFERROR(IF(PinjamanBelumDibayar*PinjamanAman,TanggalPembayaran,TanggalMulaiPinjaman), TanggalMulaiPinjaman) -> 2022-06-18 | D51: =IFERROR(IF(PinjamanBelumDibayar*PinjamanAman,NilaiPinjaman,""), "") -> Rp7,699.07 | E51: =IFERROR(IF(PinjamanBelumDibayar*PinjamanAman,AngsuranBulanan,0), 0) -> Rp108.53 | F51: =IFERROR(IF(PinjamanBelumDibayar*PinjamanAman,Pinjaman_Pokok,0), 0) -> Rp73.24 | G51: =IFERROR(IF(PinjamanBelumDibayar*PinjamanAman,JmlBunga,0), 0) -> Rp35.29 | H51: =IFERROR(IF(PinjamanBelumDibayar*PinjamanAman,SaldoAkhir,0), 0) -> Rp7,625.83
B52: =IFERROR(IF(PinjamanBelumDibayar*PinjamanAman,NomorPembayaran,""), "") -> 36 | C52: =IFERROR(IF(PinjamanBelumDibayar*PinjamanAman,TanggalPembayaran,TanggalMulaiPinjaman), TanggalMulaiPinjaman) -> 2022-07-18 | D52: =IFERROR(IF(PinjamanBelumDibayar*PinjamanAman,NilaiPinjaman,""), "") -> Rp7,625.83 | E52: =IFERROR(IF(PinjamanBelumDibayar*PinjamanAman,AngsuranBulanan,0), 0) -> Rp108.53 | F52: =IFERROR(IF(PinjamanBelumDibayar*PinjamanAman,Pinjaman_Pokok,0), 0) -> Rp73.57 | G52: =IFERROR(IF(PinjamanBelumDibayar*PinjamanAman,JmlBunga,0), 0) -> Rp34.95 | H52: =IFERROR(IF(PinjamanBelumDibayar*PinjamanAman,SaldoAkhir,0), 0) -> Rp7,552.26
B53: =IFERROR(IF(PinjamanBelumDibayar*PinjamanAman,NomorPembayaran,""), "") -> 37 | C53: =IFERROR(IF(PinjamanBelumDibayar*PinjamanAman,TanggalPembayaran,TanggalMulaiPinjaman), TanggalMulaiPinjaman) -> 2022-08-18 | D53: =IFERROR(IF(PinjamanBelumDibayar*PinjamanAman,NilaiPinjaman,""), "") -> Rp7,552.26 | E53: =IFERROR(IF(PinjamanBelumDibayar*PinjamanAman,AngsuranBulanan,0), 0) -> Rp108.53 | F53: =IFERROR(IF(PinjamanBelumDibayar*PinjamanAman,Pinjaman_Pokok,0), 0) -> Rp73.91 | G53: =IFERROR(IF(PinjamanBelumDibayar*PinjamanAman,JmlBunga,0), 0) -> Rp34.61 | H53: =IFERROR(IF(PinjamanBelumDibayar*PinjamanAman,SaldoAkhir,0), 0) -> Rp7,478.35
B54: =IFERROR(IF(PinjamanBelumDibayar*PinjamanAman,NomorPembayaran,""), "") -> 38 | C54: =IFERROR(IF(PinjamanBelumDibayar*PinjamanAman,TanggalPembayaran,TanggalMulaiPinjaman), TanggalMulaiPinjaman) -> 2022-09-18 | D54: =IFERROR(IF(PinjamanBelumDibayar*PinjamanAman,NilaiPinjaman,""), "") -> Rp7,478.35 | E54: =IFERROR(IF(PinjamanBelumDibayar*PinjamanAman,AngsuranBulanan,0), 0) -> Rp108.53 | F54: =IFERROR(IF(PinjamanBelumDibayar*PinjamanAman,Pinjaman_Pokok,0), 0) -> Rp74.25 | G54: =IFERROR(IF(PinjamanBelumDibayar*PinjamanAman,JmlBunga,0), 0) -> Rp34.28 | H54: =IFERROR(IF(PinjamanBelumDibayar*PinjamanAman,SaldoAkhir,0), 0) -> Rp7,404.10
B55: =IFERROR(IF(PinjamanBelumDibayar*PinjamanAman,NomorPembayaran,""), "") -> 39 | C55: =IFERROR(IF(PinjamanBelumDibayar*PinjamanAman,TanggalPembayaran,TanggalMulaiPinjaman), TanggalMulaiPinjaman) -> 2022-10-18 | D55: =IFERROR(IF(PinjamanBelumDibayar*PinjamanAman,NilaiPinjaman,""), "") -> Rp7,404.10 | E55: =IFERROR(IF(PinjamanBelumDibayar*PinjamanAman,AngsuranBulanan,0), 0) -> Rp108.53 | F55: =IFERROR(IF(PinjamanBelumDibayar*PinjamanAman,Pinjaman_Pokok,0), 0) -> Rp74.59 | G55: =IFERROR(IF(PinjamanBelumDibayar*PinjamanAman,JmlBunga,0), 0) -> Rp33.94 | H55: =IFERROR(IF(PinjamanBelumDibayar*PinjamanAman,SaldoAkhir,0), 0) -> Rp7,329.51
B56: =IFERROR(IF(PinjamanBelumDibayar*PinjamanAman,NomorPembayaran,""), "") -> 40 | C56: =IFERROR(IF(PinjamanBelumDibayar*PinjamanAman,TanggalPembayaran,TanggalMulaiPinjaman), TanggalMulaiPinjaman) -> 2022-11-18 | D56: =IFERROR(IF(PinjamanBelumDibayar*PinjamanAman,NilaiPinjaman,""), "") -> Rp7,329.51 | E56: =IFERROR(IF(PinjamanBelumDibayar*PinjamanAman,AngsuranBulanan,0), 0) -> Rp108.53 | F56: =IFERROR(IF(PinjamanBelumDibayar*PinjamanAman,Pinjaman_Pokok,0), 0) -> Rp74.93 | G56: =IFERROR(IF(PinjamanBelumDibayar*PinjamanAman,JmlBunga,0), 0) -> Rp33.59 | H56: =IFERROR(IF(PinjamanBelumDibayar*PinjamanAman,SaldoAkhir,0), 0) -> Rp7,254.57
B57: =IFERROR(IF(PinjamanBelumDibayar*PinjamanAman,NomorPembayaran,""), "") -> 41 | C57: =IFERROR(IF(PinjamanBelumDibayar*PinjamanAman,TanggalPembayaran,TanggalMulaiPinjaman), TanggalMulaiPinjaman) -> 2022-12-18 | D57: =IFERROR(IF(PinjamanBelumDibayar*PinjamanAman,NilaiPinjaman,""), "") -> Rp7,254.57 | E57: =IFERROR(IF(PinjamanBelumDibayar*PinjamanAman,AngsuranBulanan,0), 0) -> Rp108.53 | F57: =IFERROR(IF(PinjamanBelumDibayar*PinjamanAman,Pinjaman_Pokok,0), 0) -> Rp75.28 | G57: =IFERROR(IF(PinjamanBelumDibayar*PinjamanAman,JmlBunga,0), 0) -> Rp33.25 | H57: =IFERROR(IF(PinjamanBelumDibayar*PinjamanAman,SaldoAkhir,0), 0) -> Rp7,179.30
B58: =IFERROR(IF(PinjamanBelumDibayar*PinjamanAman,NomorPembayaran,""), "") -> 42 | C58: =IFERROR(IF(PinjamanBelumDibayar*PinjamanAman,TanggalPembayaran,TanggalMulaiPinjaman), TanggalMulaiPinjaman) -> 2023-01-18 | D58: =IFERROR(IF(PinjamanBelumDibayar*PinjamanAman,NilaiPinjaman,""), "") -> Rp7,179.30 | E58: =IFERROR(IF(PinjamanBelumDibayar*PinjamanAman,AngsuranBulanan,0), 0) -> Rp108.53 | F58: =IFERROR(IF(PinjamanBelumDibayar*PinjamanAman,Pinjaman_Pokok,0), 0) -> Rp75.62 | G58: =IFERROR(IF(PinjamanBelumDibayar*PinjamanAman,JmlBunga,0), 0) -> Rp32.91 | H58: =IFERROR(IF(PinjamanBelumDibayar*PinjamanAman,SaldoAkhir,0), 0) -> Rp7,103.68
B59: =IFERROR(IF(PinjamanBelumDibayar*PinjamanAman,NomorPembayaran,""), "") -> 43 | C59: =IFERROR(IF(PinjamanBelumDibayar*PinjamanAman,TanggalPembayaran,TanggalMulaiPinjaman), TanggalMulaiPinjaman) -> 2023-02-18 | D59: =IFERROR(IF(PinjamanBelumDibayar*PinjamanAman,NilaiPinjaman,""), "") -> Rp7,103.68 | E59: =IFERROR(IF(PinjamanBelumDibayar*PinjamanAman,AngsuranBulanan,0), 0) -> Rp108.53 | F59: =IFERROR(IF(PinjamanBelumDibayar*PinjamanAman,Pinjaman_Pokok,0), 0) -> Rp75.97 | G59: =IFERROR(IF(PinjamanBelumDibayar*PinjamanAman,JmlBunga,0), 0) -> Rp32.56 | H59: =IFERROR(IF(PinjamanBelumDibayar*PinjamanAman,SaldoAkhir,0), 0) -> Rp7,027.71
B60: =IFERROR(IF(PinjamanBelumDibayar*PinjamanAman,NomorPembayaran,""), "") -> 44 | C60: =IFERROR(IF(PinjamanBelumDibayar*PinjamanAman,TanggalPembayaran,TanggalMulaiPinjaman), TanggalMulaiPinjaman) -> 2023-03-18 | D60: =IFERROR(IF(PinjamanBelumDibayar*PinjamanAman,NilaiPinjaman,""), "") -> Rp7,027.71 | E60: =IFERROR(IF(PinjamanBelumDibayar*PinjamanAman,AngsuranBulanan,0), 0) -> Rp108.53 | F60: =IFERROR(IF(PinjamanBelumDibayar*PinjamanAman,Pinjaman_Pokok,0), 0) -> Rp76.32 | G60: =IFERROR(IF(PinjamanBelumDibayar*PinjamanAman,JmlBunga,0), 0) -> Rp32.21 | H60: =IFERROR(IF(PinjamanBelumDibayar*PinjamanAman,SaldoAkhir,0), 0) -> Rp6,951.39
B61: =IFERROR(IF(PinjamanBelumDibayar*PinjamanAman,NomorPembayaran,""), "") -> 45 | C61: =IFERROR(IF(PinjamanBelumDibayar*PinjamanAman,TanggalPembayaran,TanggalMulaiPinjaman), TanggalMulaiPinjaman) -> 2023-04-18 | D61: =IFERROR(IF(PinjamanBelumDibayar*PinjamanAman,NilaiPinjaman,""), "") -> Rp6,951.39 | E61: =IFERROR(IF(PinjamanBelumDibayar*PinjamanAman,AngsuranBulanan,0), 0) -> Rp108.53 | F61: =IFERROR(IF(PinjamanBelumDibayar*PinjamanAman,Pinjaman_Pokok,0), 0) -> Rp76.67 | G61: =IFERROR(IF(PinjamanBelumDibayar*PinjamanAman,JmlBunga,0), 0) -> Rp31.86 | H61: =IFERROR(IF(PinjamanBelumDibayar*PinjamanAman,SaldoAkhir,0), 0) -> Rp6,874.73
B62: =IFERROR(IF(PinjamanBelumDibayar*PinjamanAman,NomorPembayaran,""), "") -> 46 | C62: =IFERROR(IF(PinjamanBelumDibayar*PinjamanAman,TanggalPembayaran,TanggalMulaiPinjaman), TanggalMulaiPinjaman) -> 2023-05-18 | D62: =IFERROR(IF(PinjamanBelumDibayar*PinjamanAman,NilaiPinjaman,""), "") -> Rp6,874.73 | E62: =IFERROR(IF(PinjamanBelumDibayar*PinjamanAman,AngsuranBulanan,0), 0) -> Rp108.53 | F62: =IFERROR(IF(PinjamanBelumDibayar*PinjamanAman,Pinjaman_Pokok,0), 0) -> Rp77.02 | G62: =IFERROR(IF(PinjamanBelumDibayar*PinjamanAman,JmlBunga,0), 0) -> Rp31.51 | H62: =IFERROR(IF(PinjamanBelumDibayar*PinjamanAman,SaldoAkhir,0), 0) -> Rp6,797.71
B63: =IFERROR(IF(PinjamanBelumDibayar*PinjamanAman,NomorPembayaran,""), "") -> 47 | C63: =IFERROR(IF(PinjamanBelumDibayar*PinjamanAman,TanggalPembayaran,TanggalMulaiPinjaman), TanggalMulaiPinjaman) -> 2023-06-18 | D63: =IFERROR(IF(PinjamanBelumDibayar*PinjamanAman,NilaiPinjaman,""), "") -> Rp6,797.71 | E63: =IFERROR(IF(PinjamanBelumDibayar*PinjamanAman,AngsuranBulanan,0), 0) -> Rp108.53 | F63: =IFERROR(IF(PinjamanBelumDibayar*PinjamanAman,Pinjaman_Pokok,0), 0) -> Rp77.37 | G63: =IFERROR(IF(PinjamanBelumDibayar*PinjamanAman,JmlBunga,0), 0) -> Rp31.16 | H63: =IFERROR(IF(PinjamanBelumDibayar*PinjamanAman,SaldoAkhir,0), 0) -> Rp6,720.34
B64: =IFERROR(IF(PinjamanBelumDibayar*PinjamanAman,NomorPembayaran,""), "") -> 48 | C64: =IFERROR(IF(PinjamanBelumDibayar*PinjamanAman,TanggalPembayaran,TanggalMulaiPinjaman), TanggalMulaiPinjaman) -> 2023-07-18 | D64: =IFERROR(IF(PinjamanBelumDibayar*PinjamanAman,NilaiPinjaman,""), "") -> Rp6,720.34 | E64: =IFERROR(IF(PinjamanBelumDibayar*PinjamanAman,AngsuranBulanan,0), 0) -> Rp108.53 | F64: =IFERROR(IF(PinjamanBelumDibayar*PinjamanAman,Pinjaman_Pokok,0), 0) -> Rp77.72 | G64: =IFERROR(IF(PinjamanBelumDibayar*PinjamanAman,JmlBunga,0), 0) -> Rp30.80 | H64: =IFERROR(IF(PinjamanBelumDibayar*PinjamanAman,SaldoAkhir,0), 0) -> Rp6,642.61
B65: =IFERROR(IF(PinjamanBelumDibayar*PinjamanAman,NomorPembayaran,""), "") -> 49 | C65: =IFERROR(IF(PinjamanBelumDibayar*PinjamanAman,TanggalPembayaran,TanggalMulaiPinjaman), TanggalMulaiPinjaman) -> 2023-08-18 | D65: =IFERROR(IF(PinjamanBelumDibayar*PinjamanAman,NilaiPinjaman,""), "") -> Rp6,642.61 | E65: =IFERROR(IF(PinjamanBelumDibayar*PinjamanAman,AngsuranBulanan,0), 0) -> Rp108.53 | F65: =IFERROR(IF(PinjamanBelumDibayar*PinjamanAman,Pinjaman_Pokok,0), 0) -> Rp78.08 | G65: =IFERROR(IF(PinjamanBelumDibayar*PinjamanAman,JmlBunga,0), 0) -> Rp30.45 | H65: =IFERROR(IF(PinjamanBelumDibayar*PinjamanAman,SaldoAkhir,0), 0) -> Rp6,564.53
B66: =IFERROR(IF(PinjamanBelumDibayar*PinjamanAman,NomorPembayaran,""), "") -> 50 | C66: =IFERROR(IF(PinjamanBelumDibayar*PinjamanAman,TanggalPembayaran,TanggalMulaiPinjaman), TanggalMulaiPinjaman) -> 2023-09-18 | D66: =IFERROR(IF(PinjamanBelumDibayar*PinjamanAman,NilaiPinjaman,""), "") -> Rp6,564.53 | E66: =IFERROR(IF(PinjamanBelumDibayar*PinjamanAman,AngsuranBulanan,0), 0) -> Rp108.53 | F66: =IFERROR(IF(PinjamanBelumDibayar*PinjamanAman,Pinjaman_Pokok,0), 0) -> Rp78.44 | G66: =IFERROR(IF(PinjamanBelumDibayar*PinjamanAman,JmlBunga,0), 0) -> Rp30.09 | H66: =IFERROR(IF(PinjamanBelumDibayar*PinjamanAman,SaldoAkhir,0), 0) -> Rp6,486.09
B67: =IFERROR(IF(PinjamanBelumDibayar*PinjamanAman,NomorPembayaran,""), "") -> 51 | C67: =IFERROR(IF(PinjamanBelumDibayar*PinjamanAman,TanggalPembayaran,TanggalMulaiPinjaman), TanggalMulaiPinjaman) -> 2023-10-18 | D67: =IFERROR(IF(PinjamanBelumDibayar*PinjamanAman,NilaiPinjaman,""), "") -> Rp6,486.09 | E67: =IFERROR(IF(PinjamanBelumDibayar*PinjamanAman,AngsuranBulanan,0), 0) -> Rp108.53 | F67: =IFERROR(IF(PinjamanBelumDibayar*PinjamanAman,Pinjaman_Pokok,0), 0) -> Rp78.80 | G67: =IFERROR(IF(PinjamanBelumDibayar*PinjamanAman,JmlBunga,0), 0) -> Rp29.73 | H67: =IFERROR(IF(PinjamanBelumDibayar*PinjamanAman,SaldoAkhir,0), 0) -> Rp6,407.30
B68: =IFERROR(IF(PinjamanBelumDibayar*PinjamanAman,NomorPembayaran,""), "") -> 52 | C68: =IFERROR(IF(PinjamanBelumDibayar*PinjamanAman,TanggalPembayaran,TanggalMulaiPinjaman), TanggalMulaiPinjaman) -> 2023-11-18 | D68: =IFERROR(IF(PinjamanBelumDibayar*PinjamanAman,NilaiPinjaman,""), "") -> Rp6,407.30 | E68: =IFERROR(IF(PinjamanBelumDibayar*PinjamanAman,AngsuranBulanan,0), 0) -> Rp108.53 | F68: =IFERROR(IF(PinjamanBelumDibayar*PinjamanAman,Pinjaman_Pokok,0), 0) -> Rp79.16 | G68: =IFERROR(IF(PinjamanBelumDibayar*PinjamanAman,JmlBunga,0), 0) -> Rp29.37 | H68: =IFERROR(IF(PinjamanBelumDibayar*PinjamanAman,SaldoAkhir,0), 0) -> Rp6,328.14
B69: =IFERROR(IF(PinjamanBelumDibayar*PinjamanAman,NomorPembayaran,""), "") -> 53 | C69: =IFERROR(IF(PinjamanBelumDibayar*PinjamanAman,TanggalPembayaran,TanggalMulaiPinjaman), TanggalMulaiPinjaman) -> 2023-12-18 | D69: =IFERROR(IF(PinjamanBelumDibayar*PinjamanAman,NilaiPinjaman,""), "") -> Rp6,328.14 | E69: =IFERROR(IF(PinjamanBelumDibayar*PinjamanAman,AngsuranBulanan,0), 0) -> Rp108.53 | F69: =IFERROR(IF(PinjamanBelumDibayar*PinjamanAman,Pinjaman_Pokok,0), 0) -> Rp79.52 | G69: =IFERROR(IF(PinjamanBelumDibayar*PinjamanAman,JmlBunga,0), 0) -> Rp29.00 | H69: =IFERROR(IF(PinjamanBelumDibayar*PinjamanAman,SaldoAkhir,0), 0) -> Rp6,248.61
B70: =IFERROR(IF(PinjamanBelumDibayar*PinjamanAman,NomorPembayaran,""), "") -> 54 | C70: =IFERROR(IF(PinjamanBelumDibayar*PinjamanAman,TanggalPembayaran,TanggalMulaiPinjaman), TanggalMulaiPinjaman) -> 2024-01-18 | D70: =IFERROR(IF(PinjamanBelumDibayar*PinjamanAman,NilaiPinjaman,""), "") -> Rp6,248.61 | E70: =IFERROR(IF(PinjamanBelumDibayar*PinjamanAman,AngsuranBulanan,0), 0) -> Rp108.53 | F70: =IFERROR(IF(PinjamanBelumDibayar*PinjamanAman,Pinjaman_Pokok,0), 0) -> Rp79.89 | G70: =IFERROR(IF(PinjamanBelumDibayar*PinjamanAman,JmlBunga,0), 0) -> Rp28.64 | H70: =IFERROR(IF(PinjamanBelumDibayar*PinjamanAman,SaldoAkhir,0), 0) -> Rp6,168.73
B71: =IFERROR(IF(PinjamanBelumDibayar*PinjamanAman,NomorPembayaran,""), "") -> 55 | C71: =IFERROR(IF(PinjamanBelumDibayar*PinjamanAman,TanggalPembayaran,TanggalMulaiPinjaman), TanggalMulaiPinjaman) -> 2024-02-18 | D71: =IFERROR(IF(PinjamanBelumDibayar*PinjamanAman,NilaiPinjaman,""), "") -> Rp6,168.73 | E71: =IFERROR(IF(PinjamanBelumDibayar*PinjamanAman,AngsuranBulanan,0), 0) -> Rp108.53 | F71: =IFERROR(IF(PinjamanBelumDibayar*PinjamanAman,Pinjaman_Pokok,0), 0) -> Rp80.25 | G71: =IFERROR(IF(PinjamanBelumDibayar*PinjamanAman,JmlBunga,0), 0) -> Rp28.27 | H71: =IFERROR(IF(PinjamanBelumDibayar*PinjamanAman,SaldoAkhir,0), 0) -> Rp6,088.47
B72: =IFERROR(IF(PinjamanBelumDibayar*PinjamanAman,NomorPembayaran,""), "") -> 56 | C72: =IFERROR(IF(PinjamanBelumDibayar*PinjamanAman,TanggalPembayaran,TanggalMulaiPinjaman), TanggalMulaiPinjaman) -> 2024-03-18 | D72: =IFERROR(IF(PinjamanBelumDibayar*PinjamanAman,NilaiPinjaman,""), "") -> Rp6,088.47 | E72: =IFERROR(IF(PinjamanBelumDibayar*PinjamanAman,AngsuranBulanan,0), 0) -> Rp108.53 | F72: =IFERROR(IF(PinjamanBelumDibayar*PinjamanAman,Pinjaman_Pokok,0), 0) -> Rp80.62 | G72: =IFERROR(IF(PinjamanBelumDibayar*PinjamanAman,JmlBunga,0), 0) -> Rp27.91 | H72: =IFERROR(IF(PinjamanBelumDibayar*PinjamanAman,SaldoAkhir,0), 0) -> Rp6,007.85
B73: =IFERROR(IF(PinjamanBelumDibayar*PinjamanAman,NomorPembayaran,""), "") -> 57 | C73: =IFERROR(IF(PinjamanBelumDibayar*PinjamanAman,TanggalPembayaran,TanggalMulaiPinjaman), TanggalMulaiPinjaman) -> 2024-04-18 | D73: =IFERROR(IF(PinjamanBelumDibayar*PinjamanAman,NilaiPinjaman,""), "") -> Rp6,007.85 | E73: =IFERROR(IF(PinjamanBelumDibayar*PinjamanAman,AngsuranBulanan,0), 0) -> Rp108.53 | F73: =IFERROR(IF(PinjamanBelumDibayar*PinjamanAman,Pinjaman_Pokok,0), 0) -> Rp80.99 | G73: =IFERROR(IF(PinjamanBelumDibayar*PinjamanAman,JmlBunga,0), 0) -> Rp27.54 | H73: =IFERROR(IF(PinjamanBelumDibayar*PinjamanAman,SaldoAkhir,0), 0) -> Rp5,926.86
B74: =IFERROR(IF(PinjamanBelumDibayar*PinjamanAman,NomorPembayaran,""), "") -> 58 | C74: =IFERROR(IF(PinjamanBelumDibayar*PinjamanAman,TanggalPembayaran,TanggalMulaiPinjaman), TanggalMulaiPinjaman) -> 2024-05-18 | D74: =IFERROR(IF(PinjamanBelumDibayar*PinjamanAman,NilaiPinjaman,""), "") -> Rp5,926.86 | E74: =IFERROR(IF(PinjamanBelumDibayar*PinjamanAman,AngsuranBulanan,0), 0) -> Rp108.53 | F74: =IFERROR(IF(PinjamanBelumDibayar*PinjamanAman,Pinjaman_Pokok,0), 0) -> Rp81.36 | G74: =IFERROR(IF(PinjamanBelumDibayar*PinjamanAman,JmlBunga,0), 0) -> Rp27.16 | H74: =IFERROR(IF(PinjamanBelumDibayar*PinjamanAman,SaldoAkhir,0), 0) -> Rp5,845.50
B75: =IFERROR(IF(PinjamanBelumDibayar*PinjamanAman,NomorPembayaran,""), "") -> 59 | C75: =IFERROR(IF(PinjamanBelumDibayar*PinjamanAman,TanggalPembayaran,TanggalMulaiPinjaman), TanggalMulaiPinjaman) -> 2024-06-18 | D75: =IFERROR(IF(PinjamanBelumDibayar*PinjamanAman,NilaiPinjaman,""), "") -> Rp5,845.50 | E75: =IFERROR(IF(PinjamanBelumDibayar*PinjamanAman,AngsuranBulanan,0), 0) -> Rp108.53 | F75: =IFERROR(IF(PinjamanBelumDibayar*PinjamanAman,Pinjaman_Pokok,0), 0) -> Rp81.73 | G75: =IFERROR(IF(PinjamanBelumDibayar*PinjamanAman,JmlBunga,0), 0) -> Rp26.79 | H75: =IFERROR(IF(PinjamanBelumDibayar*PinjamanAman,SaldoAkhir,0), 0) -> Rp5,763.77
B76: =IFERROR(IF(PinjamanBelumDibayar*PinjamanAman,NomorPembayaran,""), "") -> 60 | C76: =IFERROR(IF(PinjamanBelumDibayar*PinjamanAman,TanggalPembayaran,TanggalMulaiPinjaman), TanggalMulaiPinjaman) -> 2024-07-18 | D76: =IFERROR(IF(PinjamanBelumDibayar*PinjamanAman,NilaiPinjaman,""), "") -> Rp5,763.77 | E76: =IFERROR(IF(PinjamanBelumDibayar*PinjamanAman,AngsuranBulanan,0), 0) -> Rp108.53 | F76: =IFERROR(IF(PinjamanBelumDibayar*PinjamanAman,Pinjaman_Pokok,0), 0) -> Rp82.11 | G76: =IFERROR(IF(PinjamanBelumDibayar*PinjamanAman,JmlBunga,0), 0) -> Rp26.42 | H76: =IFERROR(IF(PinjamanBelumDibayar*PinjamanAman,SaldoAkhir,0), 0) -> Rp5,681.66
B77: =IFERROR(IF(PinjamanBelumDibayar*PinjamanAman,NomorPembayaran,""), "") -> 61 | C77: =IFERROR(IF(PinjamanBelumDibayar*PinjamanAman,TanggalPembayaran,TanggalMulaiPinjaman), TanggalMulaiPinjaman) -> 2024-08-18 | D77: =IFERROR(IF(PinjamanBelumDibayar*PinjamanAman,NilaiPinjaman,""), "") -> Rp5,681.66 | E77: =IFERROR(IF(PinjamanBelumDibayar*PinjamanAman,AngsuranBulanan,0), 0) -> Rp108.53 | F77: =IFERROR(IF(PinjamanBelumDibayar*PinjamanAman,Pinjaman_Pokok,0), 0) -> Rp82.49 | G77: =IFERROR(IF(PinjamanBelumDibayar*PinjamanAman,JmlBunga,0), 0) -> Rp26.04 | H77: =IFERROR(IF(PinjamanBelumDibayar*PinjamanAman,SaldoAkhir,0), 0) -> Rp5,599.17
B78: =IFERROR(IF(PinjamanBelumDibayar*PinjamanAman,NomorPembayaran,""), "") -> 62 | C78: =IFERROR(IF(PinjamanBelumDibayar*PinjamanAman,TanggalPembayaran,TanggalMulaiPinjaman), TanggalMulaiPinjaman) -> 2024-09-18 | D78: =IFERROR(IF(PinjamanBelumDibayar*PinjamanAman,NilaiPinjaman,""), "") -> Rp5,599.17 | E78: =IFERROR(IF(PinjamanBelumDibayar*PinjamanAman,AngsuranBulanan,0), 0) -> Rp108.53 | F78: =IFERROR(IF(PinjamanBelumDibayar*PinjamanAman,Pinjaman_Pokok,0), 0) -> Rp82.86 | G78: =IFERROR(IF(PinjamanBelumDibayar*PinjamanAman,JmlBunga,0), 0) -> Rp25.66 | H78: =IFERROR(IF(PinjamanBelumDibayar*PinjamanAman,SaldoAkhir,0), 0) -> Rp5,516.31
B79: =IFERROR(IF(PinjamanBelumDibayar*PinjamanAman,NomorPembayaran,""), "") -> 63 | C79: =IFERROR(IF(PinjamanBelumDibayar*PinjamanAman,TanggalPembayaran,TanggalMulaiPinjaman), TanggalMulaiPinjaman) -> 2024-10-18 | D79: =IFERROR(IF(PinjamanBelumDibayar*PinjamanAman,NilaiPinjaman,""), "") -> Rp5,516.31 | E79: =IFERROR(IF(PinjamanBelumDibayar*PinjamanAman,AngsuranBulanan,0), 0) -> Rp108.53 | F79: =IFERROR(IF(PinjamanBelumDibayar*PinjamanAman,Pinjaman_Pokok,0), 0) -> Rp83.24 | G79: =IFERROR(IF(PinjamanBelumDibayar*PinjamanAman,JmlBunga,0), 0) -> Rp25.28 | H79: =IFERROR(IF(PinjamanBelumDibayar*PinjamanAman,SaldoAkhir,0), 0) -> Rp5,433.07
B80: =IFERROR(IF(PinjamanBelumDibayar*PinjamanAman,NomorPembayaran,""), "") -> 64 | C80: =IFERROR(IF(PinjamanBelumDibayar*PinjamanAman,TanggalPembayaran,TanggalMulaiPinjaman), TanggalMulaiPinjaman) -> 2024-11-18 | D80: =IFERROR(IF(PinjamanBelumDibayar*PinjamanAman,NilaiPinjaman,""), "") -> Rp5,433.07 | E80: =IFERROR(IF(PinjamanBelumDibayar*PinjamanAman,AngsuranBulanan,0), 0) -> Rp108.53 | F80: =IFERROR(IF(PinjamanBelumDibayar*PinjamanAman,Pinjaman_Pokok,0), 0) -> Rp83.62 | G80: =IFERROR(IF(PinjamanBelumDibayar*PinjamanAman,JmlBunga,0), 0) -> Rp24.90 | H80: =IFERROR(IF(PinjamanBelumDibayar*PinjamanAman,SaldoAkhir,0), 0) -> Rp5,349.44
B81: =IFERROR(IF(PinjamanBelumDibayar*PinjamanAman,NomorPembayaran,""), "") -> 65 | C81: =IFERROR(IF(PinjamanBelumDibayar*PinjamanAman,TanggalPembayaran,TanggalMulaiPinjaman), TanggalMulaiPinjaman) -> 2024-12-18 | D81: =IFERROR(IF(PinjamanBelumDibayar*PinjamanAman,NilaiPinjaman,""), "") -> Rp5,349.44 | E81: =IFERROR(IF(PinjamanBelumDibayar*PinjamanAman,AngsuranBulanan,0), 0) -> Rp108.53 | F81: =IFERROR(IF(PinjamanBelumDibayar*PinjamanAman,Pinjaman_Pokok,0), 0) -> Rp84.01 | G81: =IFERROR(IF(PinjamanBelumDibayar*PinjamanAman,JmlBunga,0), 0) -> Rp24.52 | H81: =IFERROR(IF(PinjamanBelumDibayar*PinjamanAman,SaldoAkhir,0), 0) -> Rp5,265.43
B82: =IFERROR(IF(PinjamanBelumDibayar*PinjamanAman,NomorPembayaran,""), "") -> 66 | C82: =IFERROR(IF(PinjamanBelumDibayar*PinjamanAman,TanggalPembayaran,TanggalMulaiPinjaman), TanggalMulaiPinjaman) -> 2025-01-18 | D82: =IFERROR(IF(PinjamanBelumDibayar*PinjamanAman,NilaiPinjaman,""), "") -> Rp5,265.43 | E82: =IFERROR(IF(PinjamanBelumDibayar*PinjamanAman,AngsuranBulanan,0), 0) -> Rp108.53 | F82: =IFERROR(IF(PinjamanBelumDibayar*PinjamanAman,Pinjaman_Pokok,0), 0) -> Rp84.39 | G82: =IFERROR(IF(PinjamanBelumDibayar*PinjamanAman,JmlBunga,0), 0) -> Rp24.13 | H82: =IFERROR(IF(PinjamanBelumDibayar*PinjamanAman,SaldoAkhir,0), 0) -> Rp5,181.04
B83: =IFERROR(IF(PinjamanBelumDibayar*PinjamanAman,NomorPembayaran,""), "") -> 67 | C83: =IFERROR(IF(PinjamanBelumDibayar*PinjamanAman,TanggalPembayaran,TanggalMulaiPinjaman), TanggalMulaiPinjaman) -> 2025-02-18 | D83: =IFERROR(IF(PinjamanBelumDibayar*PinjamanAman,NilaiPinjaman,""), "") -> Rp5,181.04 | E83: =IFERROR(IF(PinjamanBelumDibayar*PinjamanAman,AngsuranBulanan,0), 0) -> Rp108.53 | F83: =IFERROR(IF(PinjamanBelumDibayar*PinjamanAman,Pinjaman_Pokok,0), 0) -> Rp84.78 | G83: =IFERROR(IF(PinjamanBelumDibayar*PinjamanAman,JmlBunga,0), 0) -> Rp23.75 | H83: =IFERROR(IF(PinjamanBelumDibayar*PinjamanAman,SaldoAkhir,0), 0) -> Rp5,096.26
B84: =IFERROR(IF(PinjamanBelumDibayar*PinjamanAman,NomorPembayaran,""), "") -> 68 | C84: =IFERROR(IF(PinjamanBelumDibayar*PinjamanAman,TanggalPembayaran,TanggalMulaiPinjaman), TanggalMulaiPinjaman) -> 2025-03-18 | D84: =IFERROR(IF(PinjamanBelumDibayar*PinjamanAman,NilaiPinjaman,""), "") -> Rp5,096.26 | E84: =IFERROR(IF(PinjamanBelumDibayar*PinjamanAman,AngsuranBulanan,0), 0) -> Rp108.53 | F84: =IFERROR(IF(PinjamanBelumDibayar*PinjamanAman,Pinjaman_Pokok,0), 0) -> Rp85.17 | G84: =IFERROR(IF(PinjamanBelumDibayar*PinjamanAman,JmlBunga,0), 0) -> Rp23.36 | H84: =IFERROR(IF(PinjamanBelumDibayar*PinjamanAman,SaldoAkhir,0), 0) -> Rp5,011.09
B85: =IFERROR(IF(PinjamanBelumDibayar*PinjamanAman,NomorPembayaran,""), "") -> 69 | C85: =IFERROR(IF(PinjamanBelumDibayar*PinjamanAman,TanggalPembayaran,TanggalMulaiPinjaman), TanggalMulaiPinjaman) -> 2025-04-18 | D85: =IFERROR(IF(PinjamanBelumDibayar*PinjamanAman,NilaiPinjaman,""), "") -> Rp5,011.09 | E85: =IFERROR(IF(PinjamanBelumDibayar*PinjamanAman,AngsuranBulanan,0), 0) -> Rp108.53 | F85: =IFERROR(IF(PinjamanBelumDibayar*PinjamanAman,Pinjaman_Pokok,0), 0) -> Rp85.56 | G85: =IFERROR(IF(PinjamanBelumDibayar*PinjamanAman,JmlBunga,0), 0) -> Rp22.97 | H85: =IFERROR(IF(PinjamanBelumDibayar*PinjamanAman,SaldoAkhir,0), 0) -> Rp4,925.53
B86: =IFERROR(IF(PinjamanBelumDibayar*PinjamanAman,NomorPembayaran,""), "") -> 70 | C86: =IFERROR(IF(PinjamanBelumDibayar*PinjamanAman,TanggalPembayaran,TanggalMulaiPinjaman), TanggalMulaiPinjaman) -> 2025-05-18 | D86: =IFERROR(IF(PinjamanBelumDibayar*PinjamanAman,NilaiPinjaman,""), "") -> Rp4,925.53 | E86: =IFERROR(IF(PinjamanBelumDibayar*PinjamanAman,AngsuranBulanan,0), 0) -> Rp108.53 | F86: =IFERROR(IF(PinjamanBelumDibayar*PinjamanAman,Pinjaman_Pokok,0), 0) -> Rp85.95 | G86: =IFERROR(IF(PinjamanBelumDibayar*PinjamanAman,JmlBunga,0), 0) -> Rp22.58 | H86: =IFERROR(IF(PinjamanBelumDibayar*PinjamanAman,SaldoAkhir,0), 0) -> Rp4,839.58
B87: =IFERROR(IF(PinjamanBelumDibayar*PinjamanAman,NomorPembayaran,""), "") -> 71 | C87: =IFERROR(IF(PinjamanBelumDibayar*PinjamanAman,TanggalPembayaran,TanggalMulaiPinjaman), TanggalMulaiPinjaman) -> 2025-06-18 | D87: =IFERROR(IF(PinjamanBelumDibayar*PinjamanAman,NilaiPinjaman,""), "") -> Rp4,839.58 | E87: =IFERROR(IF(PinjamanBelumDibayar*PinjamanAman,AngsuranBulanan,0), 0) -> Rp108.53 | F87: =IFERROR(IF(PinjamanBelumDibayar*PinjamanAman,Pinjaman_Pokok,0), 0) -> Rp86.34 | G87: =IFERROR(IF(PinjamanBelumDibayar*PinjamanAman,JmlBunga,0), 0) -> Rp22.18 | H87: =IFERROR(IF(PinjamanBelumDibayar*PinjamanAman,SaldoAkhir,0), 0) -> Rp4,753.24
B88: =IFERROR(IF(PinjamanBelumDibayar*PinjamanAman,NomorPembayaran,""), "") -> 72 | C88: =IFERROR(IF(PinjamanBelumDibayar*PinjamanAman,TanggalPembayaran,TanggalMulaiPinjaman), TanggalMulaiPinjaman) -> 2025-07-18 | D88: =IFERROR(IF(PinjamanBelumDibayar*PinjamanAman,NilaiPinjaman,""), "") -> Rp4,753.24 | E88: =IFERROR(IF(PinjamanBelumDibayar*PinjamanAman,AngsuranBulanan,0), 0) -> Rp108.53 | F88: =IFERROR(IF(PinjamanBelumDibayar*PinjamanAman,Pinjaman_Pokok,0), 0) -> Rp86.74 | G88: =IFERROR(IF(PinjamanBelumDibayar*PinjamanAman,JmlBunga,0), 0) -> Rp21.79 | H88: =IFERROR(IF(PinjamanBelumDibayar*PinjamanAman,SaldoAkhir,0), 0) -> Rp4,666.50
B89: =IFERROR(IF(PinjamanBelumDibayar*PinjamanAman,NomorPembayaran,""), "") -> 73 | C89: =IFERROR(IF(PinjamanBelumDibayar*PinjamanAman,TanggalPembayaran,TanggalMulaiPinjaman), TanggalMulaiPinjaman) -> 2025-08-18 | D89: =IFERROR(IF(PinjamanBelumDibayar*PinjamanAman,NilaiPinjaman,""), "") -> Rp4,666.50 | E89: =IFERROR(IF(PinjamanBelumDibayar*PinjamanAman,AngsuranBulanan,0), 0) -> Rp108.53 | F89: =IFERROR(IF(PinjamanBelumDibayar*PinjamanAman,Pinjaman_Pokok,0), 0) -> Rp87.14 | G89: =IFERROR(IF(PinjamanBelumDibayar*PinjamanAman,JmlBunga,0), 0) -> Rp21.39 | H89: =IFERROR(IF(PinjamanBelumDibayar*PinjamanAman,SaldoAkhir,0), 0) -> Rp4,579.36
B90: =IFERROR(IF(PinjamanBelumDibayar*PinjamanAman,NomorPembayaran,""), "") -> 74 | C90: =IFERROR(IF(PinjamanBelumDibayar*PinjamanAman,TanggalPembayaran,TanggalMulaiPinjaman), TanggalMulaiPinjaman) -> 2025-09-18 | D90: =IFERROR(IF(PinjamanBelumDibayar*PinjamanAman,NilaiPinjaman,""), "") -> Rp4,579.36 | E90: =IFERROR(IF(PinjamanBelumDibayar*PinjamanAman,AngsuranBulanan,0), 0) -> Rp108.53 | F90: =IFERROR(IF(PinjamanBelumDibayar*PinjamanAman,Pinjaman_Pokok,0), 0) -> Rp87.54 | G90: =IFERROR(IF(PinjamanBelumDibayar*PinjamanAman,JmlBunga,0), 0) -> Rp20.99 | H90: =IFERROR(IF(PinjamanBelumDibayar*PinjamanAman,SaldoAkhir,0), 0) -> Rp4,491.82
B91: =IFERROR(IF(PinjamanBelumDibayar*PinjamanAman,NomorPembayaran,""), "") -> 75 | C91: =IFERROR(IF(PinjamanBelumDibayar*PinjamanAman,TanggalPembayaran,TanggalMulaiPinjaman), TanggalMulaiPinjaman) -> 2025-10-18 | D91: =IFERROR(IF(PinjamanBelumDibayar*PinjamanAman,NilaiPinjaman,""), "") -> Rp4,491.82 | E91: =IFERROR(IF(PinjamanBelumDibayar*PinjamanAman,AngsuranBulanan,0), 0) -> Rp108.53 | F91: =IFERROR(IF(PinjamanBelumDibayar*PinjamanAman,Pinjaman_Pokok,0), 0) -> Rp87.94 | G91: =IFERROR(IF(PinjamanBelumDibayar*PinjamanAman,JmlBunga,0), 0) -> Rp20.59 | H91: =IFERROR(IF(PinjamanBelumDibayar*PinjamanAman,SaldoAkhir,0), 0) -> Rp4,403.88
B92: =IFERROR(IF(PinjamanBelumDibayar*PinjamanAman,NomorPembayaran,""), "") -> 76 | C92: =IFERROR(IF(PinjamanBelumDibayar*PinjamanAman,TanggalPembayaran,TanggalMulaiPinjaman), TanggalMulaiPinjaman) -> 2025-11-18 | D92: =IFERROR(IF(PinjamanBelumDibayar*PinjamanAman,NilaiPinjaman,""), "") -> Rp4,403.88 | E92: =IFERROR(IF(PinjamanBelumDibayar*PinjamanAman,AngsuranBulanan,0), 0) -> Rp108.53 | F92: =IFERROR(IF(PinjamanBelumDibayar*PinjamanAman,Pinjaman_Pokok,0), 0) -> Rp88.34 | G92: =IFERROR(IF(PinjamanBelumDibayar*PinjamanAman,JmlBunga,0), 0) -> Rp20.18 | H92: =IFERROR(IF(PinjamanBelumDibayar*PinjamanAman,SaldoAkhir,0), 0) -> Rp4,315.54
B93: =IFERROR(IF(PinjamanBelumDibayar*PinjamanAman,NomorPembayaran,""), "") -> 77 | C93: =IFERROR(IF(PinjamanBelumDibayar*PinjamanAman,TanggalPembayaran,TanggalMulaiPinjaman), TanggalMulaiPinjaman) -> 2025-12-18 | D93: =IFERROR(IF(PinjamanBelumDibayar*PinjamanAman,NilaiPinjaman,""), "") -> Rp4,315.54 | E93: =IFERROR(IF(PinjamanBelumDibayar*PinjamanAman,AngsuranBulanan,0), 0) -> Rp108.53 | F93: =IFERROR(IF(PinjamanBelumDibayar*PinjamanAman,Pinjaman_Pokok,0), 0) -> Rp88.75 | G93: =IFERROR(IF(PinjamanBelumDibayar*PinjamanAman,JmlBunga,0), 0) -> Rp19.78 | H93: =IFERROR(IF(PinjamanBelumDibayar*PinjamanAman,SaldoAkhir,0), 0) -> Rp4,226.79
B94: =IFERROR(IF(PinjamanBelumDibayar*PinjamanAman,NomorPembayaran,""), "") -> 78 | C94: =IFERROR(IF(PinjamanBelumDibayar*PinjamanAman,TanggalPembayaran,TanggalMulaiPinjaman), TanggalMulaiPinjaman) -> 2026-01-18 | D94: =IFERROR(IF(PinjamanBelumDibayar*PinjamanAman,NilaiPinjaman,""), "") -> Rp4,226.79 | E94: =IFERROR(IF(PinjamanBelumDibayar*PinjamanAman,AngsuranBulanan,0), 0) -> Rp108.53 | F94: =IFERROR(IF(PinjamanBelumDibayar*PinjamanAman,Pinjaman_Pokok,0), 0) -> Rp89.15 | G94: =IFERROR(IF(PinjamanBelumDibayar*PinjamanAman,JmlBunga,0), 0) -> Rp19.37 | H94: =IFERROR(IF(PinjamanBelumDibayar*PinjamanAman,SaldoAkhir,0), 0) -> Rp4,137.64
B95: =IFERROR(IF(PinjamanBelumDibayar*PinjamanAman,NomorPembayaran,""), "") -> 79 | C95: =IFERROR(IF(PinjamanBelumDibayar*PinjamanAman,TanggalPembayaran,TanggalMulaiPinjaman), TanggalMulaiPinjaman) -> 2026-02-18 | D95: =IFERROR(IF(PinjamanBelumDibayar*PinjamanAman,NilaiPinjaman,""), "") -> Rp4,137.64 | E95: =IFERROR(IF(PinjamanBelumDibayar*PinjamanAman,AngsuranBulanan,0), 0) -> Rp108.53 | F95: =IFERROR(IF(PinjamanBelumDibayar*PinjamanAman,Pinjaman_Pokok,0), 0) -> Rp89.56 | G95: =IFERROR(IF(PinjamanBelumDibayar*PinjamanAman,JmlBunga,0), 0) -> Rp18.96 | H95: =IFERROR(IF(PinjamanBelumDibayar*PinjamanAman,SaldoAkhir,0), 0) -> Rp4,048.08
B96: =IFERROR(IF(PinjamanBelumDibayar*PinjamanAman,NomorPembayaran,""), "") -> 80 | C96: =IFERROR(IF(PinjamanBelumDibayar*PinjamanAman,TanggalPembayaran,TanggalMulaiPinjaman), TanggalMulaiPinjaman) -> 2026-03-18 | D96: =IFERROR(IF(PinjamanBelumDibayar*PinjamanAman,NilaiPinjaman,""), "") -> Rp4,048.08 | E96: =IFERROR(IF(PinjamanBelumDibayar*PinjamanAman,AngsuranBulanan,0), 0) -> Rp108.53 | F96: =IFERROR(IF(PinjamanBelumDibayar*PinjamanAman,Pinjaman_Pokok,0), 0) -> Rp89.97 | G96: =IFERROR(IF(PinjamanBelumDibayar*PinjamanAman,JmlBunga,0), 0) -> Rp18.55 | H96: =IFERROR(IF(PinjamanBelumDibayar*PinjamanAman,SaldoAkhir,0), 0) -> Rp3,958.11
B97: =IFERROR(IF(PinjamanBelumDibayar*PinjamanAman,NomorPembayaran,""), "") -> 81 | C97: =IFERROR(IF(PinjamanBelumDibayar*PinjamanAman,TanggalPembayaran,TanggalMulaiPinjaman), TanggalMulaiPinjaman) -> 2026-04-18 | D97: =IFERROR(IF(PinjamanBelumDibayar*PinjamanAman,NilaiPinjaman,""), "") -> Rp3,958.11 | E97: =IFERROR(IF(PinjamanBelumDibayar*PinjamanAman,AngsuranBulanan,0), 0) -> Rp108.53 | F97: =IFERROR(IF(PinjamanBelumDibayar*PinjamanAman,Pinjaman_Pokok,0), 0) -> Rp90.38 | G97: =IFERROR(IF(PinjamanBelumDibayar*PinjamanAman,JmlBunga,0), 0) -> Rp18.14 | H97: =IFERROR(IF(PinjamanBelumDibayar*PinjamanAman,SaldoAkhir,0), 0) -> Rp3,867.72
B98: =IFERROR(IF(PinjamanBelumDibayar*PinjamanAman,NomorPembayaran,""), "") -> 82 | C98: =IFERROR(IF(PinjamanBelumDibayar*PinjamanAman,TanggalPembayaran,TanggalMulaiPinjaman), TanggalMulaiPinjaman) -> 2026-05-18 | D98: =IFERROR(IF(PinjamanBelumDibayar*PinjamanAman,NilaiPinjaman,""), "") -> Rp3,867.72 | E98: =IFERROR(IF(PinjamanBelumDibayar*PinjamanAman,AngsuranBulanan,0), 0) -> Rp108.53 | F98: =IFERROR(IF(PinjamanBelumDibayar*PinjamanAman,Pinjaman_Pokok,0), 0) -> Rp90.80 | G98: =IFERROR(IF(PinjamanBelumDibayar*PinjamanAman,JmlBunga,0), 0) -> Rp17.73 | H98: =IFERROR(IF(PinjamanBelumDibayar*PinjamanAman,SaldoAkhir,0), 0) -> Rp3,776.92
B99: =IFERROR(IF(PinjamanBelumDibayar*PinjamanAman,NomorPembayaran,""), "") -> 83 | C99: =IFERROR(IF(PinjamanBelumDibayar*PinjamanAman,TanggalPembayaran,TanggalMulaiPinjaman), TanggalMulaiPinjaman) -> 2026-06-18 | D99: =IFERROR(IF(PinjamanBelumDibayar*PinjamanAman,NilaiPinjaman,""), "") -> Rp3,776.92 | E99: =IFERROR(IF(PinjamanBelumDibayar*PinjamanAman,AngsuranBulanan,0), 0) -> Rp108.53 | F99: =IFERROR(IF(PinjamanBelumDibayar*PinjamanAman,Pinjaman_Pokok,0), 0) -> Rp91.22 | G99: =IFERROR(IF(PinjamanBelumDibayar*PinjamanAman,JmlBunga,0), 0) -> Rp17.31 | H99: =IFERROR(IF(PinjamanBelumDibayar*PinjamanAman,SaldoAkhir,0), 0) -> Rp3,685.71
B100: =IFERROR(IF(PinjamanBelumDibayar*PinjamanAman,NomorPembayaran,""), "") -> 84 | C100: =IFERROR(IF(PinjamanBelumDibayar*PinjamanAman,TanggalPembayaran,TanggalMulaiPinjaman), TanggalMulaiPinjaman) -> 2026-07-18 | D100: =IFERROR(IF(PinjamanBelumDibayar*PinjamanAman,NilaiPinjaman,""), "") -> Rp3,685.71 | E100: =IFERROR(IF(PinjamanBelumDibayar*PinjamanAman,AngsuranBulanan,0), 0) -> Rp108.53 | F100: =IFERROR(IF(PinjamanBelumDibayar*PinjamanAman,Pinjaman_Pokok,0), 0) -> Rp91.63 | G100: =IFERROR(IF(PinjamanBelumDibayar*PinjamanAman,JmlBunga,0), 0) -> Rp16.89 | H100: =IFERROR(IF(PinjamanBelumDibayar*PinjamanAman,SaldoAkhir,0), 0) -> Rp3,594.07
B101: =IFERROR(IF(PinjamanBelumDibayar*PinjamanAman,NomorPembayaran,""), "") -> 85 | C101: =IFERROR(IF(PinjamanBelumDibayar*PinjamanAman,TanggalPembayaran,TanggalMulaiPinjaman), TanggalMulaiPinjaman) -> 2026-08-18 | D101: =IFERROR(IF(PinjamanBelumDibayar*PinjamanAman,NilaiPinjaman,""), "") -> Rp3,594.07 | E101: =IFERROR(IF(PinjamanBelumDibayar*PinjamanAman,AngsuranBulanan,0), 0) -> Rp108.53 | F101: =IFERROR(IF(PinjamanBelumDibayar*PinjamanAman,Pinjaman_Pokok,0), 0) -> Rp92.05 | G101: =IFERROR(IF(PinjamanBelumDibayar*PinjamanAman,JmlBunga,0), 0) -> Rp16.47 | H101: =IFERROR(IF(PinjamanBelumDibayar*PinjamanAman,SaldoAkhir,0), 0) -> Rp3,502.02
B102: =IFERROR(IF(PinjamanBelumDibayar*PinjamanAman,NomorPembayaran,""), "") -> 86 | C102: =IFERROR(IF(PinjamanBelumDibayar*PinjamanAman,TanggalPembayaran,TanggalMulaiPinjaman), TanggalMulaiPinjaman) -> 2026-09-18 | D102: =IFERROR(IF(PinjamanBelumDibayar*PinjamanAman,NilaiPinjaman,""), "") -> Rp3,502.02 | E102: =IFERROR(IF(PinjamanBelumDibayar*PinjamanAman,AngsuranBulanan,0), 0) -> Rp108.53 | F102: =IFERROR(IF(PinjamanBelumDibayar*PinjamanAman,Pinjaman_Pokok,0), 0) -> Rp92.48 | G102: =IFERROR(IF(PinjamanBelumDibayar*PinjamanAman,JmlBunga,0), 0) -> Rp16.05 | H102: =IFERROR(IF(PinjamanBelumDibayar*PinjamanAman,SaldoAkhir,0), 0) -> Rp3,409.54
B103: =IFERROR(IF(PinjamanBelumDibayar*PinjamanAman,NomorPembayaran,""), "") -> 87 | C103: =IFERROR(IF(PinjamanBelumDibayar*PinjamanAman,TanggalPembayaran,TanggalMulaiPinjaman), TanggalMulaiPinjaman) -> 2026-10-18 | D103: =IFERROR(IF(PinjamanBelumDibayar*PinjamanAman,NilaiPinjaman,""), "") -> Rp3,409.54 | E103: =IFERROR(IF(PinjamanBelumDibayar*PinjamanAman,AngsuranBulanan,0), 0) -> Rp108.53 | F103: =IFERROR(IF(PinjamanBelumDibayar*PinjamanAman,Pinjaman_Pokok,0), 0) -> Rp92.90 | G103: =IFERROR(IF(PinjamanBelumDibayar*PinjamanAman,JmlBunga,0), 0) -> Rp15.63 | H103: =IFERROR(IF(PinjamanBelumDibayar*PinjamanAman,SaldoAkhir,0), 0) -> Rp3,316.65
B104: =IFERROR(IF(PinjamanBelumDibayar*PinjamanAman,NomorPembayaran,""), "") -> 88 | C104: =IFERROR(IF(PinjamanBelumDibayar*PinjamanAman,TanggalPembayaran,TanggalMulaiPinjaman), TanggalMulaiPinjaman) -> 2026-11-18 | D104: =IFERROR(IF(PinjamanBelumDibayar*PinjamanAman,NilaiPinjaman,""), "") -> Rp3,316.65 | E104: =IFERROR(IF(PinjamanBelumDibayar*PinjamanAman,AngsuranBulanan,0), 0) -> Rp108.53 | F104: =IFERROR(IF(PinjamanBelumDibayar*PinjamanAman,Pinjaman_Pokok,0), 0) -> Rp93.32 | G104: =IFERROR(IF(PinjamanBelumDibayar*PinjamanAman,JmlBunga,0), 0) -> Rp15.20 | H104: =IFERROR(IF(PinjamanBelumDibayar*PinjamanAman,SaldoAkhir,0), 0) -> Rp3,223.32
B105: =IFERROR(IF(PinjamanBelumDibayar*PinjamanAman,NomorPembayaran,""), "") -> 89 | C105: =IFERROR(IF(PinjamanBelumDibayar*PinjamanAman,TanggalPembayaran,TanggalMulaiPinjaman), TanggalMulaiPinjaman) -> 2026-12-18 | D105: =IFERROR(IF(PinjamanBelumDibayar*PinjamanAman,NilaiPinjaman,""), "") -> Rp3,223.32 | E105: =IFERROR(IF(PinjamanBelumDibayar*PinjamanAman,AngsuranBulanan,0), 0) -> Rp108.53 | F105: =IFERROR(IF(PinjamanBelumDibayar*PinjamanAman,Pinjaman_Pokok,0), 0) -> Rp93.75 | G105: =IFERROR(IF(PinjamanBelumDibayar*PinjamanAman,JmlBunga,0), 0) -> Rp14.77 | H105: =IFERROR(IF(PinjamanBelumDibayar*PinjamanAman,SaldoAkhir,0), 0) -> Rp3,129.57
B106: =IFERROR(IF(PinjamanBelumDibayar*PinjamanAman,NomorPembayaran,""), "") -> 90 | C106: =IFERROR(IF(PinjamanBelumDibayar*PinjamanAman,TanggalPembayaran,TanggalMulaiPinjaman), TanggalMulaiPinjaman) -> 2027-01-18 | D106: =IFERROR(IF(PinjamanBelumDibayar*PinjamanAman,NilaiPinjaman,""), "") -> Rp3,129.57 | E106: =IFERROR(IF(PinjamanBelumDibayar*PinjamanAman,AngsuranBulanan,0), 0) -> Rp108.53 | F106: =IFERROR(IF(PinjamanBelumDibayar*PinjamanAman,Pinjaman_Pokok,0), 0) -> Rp94.18 | G106: =IFERROR(IF(PinjamanBelumDibayar*PinjamanAman,JmlBunga,0), 0) -> Rp14.34 | H106: =IFERROR(IF(PinjamanBelumDibayar*PinjamanAman,SaldoAkhir,0), 0) -> Rp3,035.38
B107: =IFERROR(IF(PinjamanBelumDibayar*PinjamanAman,NomorPembayaran,""), "") -> 91 | C107: =IFERROR(IF(PinjamanBelumDibayar*PinjamanAman,TanggalPembayaran,TanggalMulaiPinjaman), TanggalMulaiPinjaman) -> 2027-02-18 | D107: =IFERROR(IF(PinjamanBelumDibayar*PinjamanAman,NilaiPinjaman,""), "") -> Rp3,035.38 | E107: =IFERROR(IF(PinjamanBelumDibayar*PinjamanAman,AngsuranBulanan,0), 0) -> Rp108.53 | F107: =IFERROR(IF(PinjamanBelumDibayar*PinjamanAman,Pinjaman_Pokok,0), 0) -> Rp94.61 | G107: =IFERROR(IF(PinjamanBelumDibayar*PinjamanAman,JmlBunga,0), 0) -> Rp13.91 | H107: =IFERROR(IF(PinjamanBelumDibayar*PinjamanAman,SaldoAkhir,0), 0) -> Rp2,940.77
B108: =IFERROR(IF(PinjamanBelumDibayar*PinjamanAman,NomorPembayaran,""), "") -> 92 | C108: =IFERROR(IF(PinjamanBelumDibayar*PinjamanAman,TanggalPembayaran,TanggalMulaiPinjaman), TanggalMulaiPinjaman) -> 2027-03-18 | D108: =IFERROR(IF(PinjamanBelumDibayar*PinjamanAman,NilaiPinjaman,""), "") -> Rp2,940.77 | E108: =IFERROR(IF(PinjamanBelumDibayar*PinjamanAman,AngsuranBulanan,0), 0) -> Rp108.53 | F108: =IFERROR(IF(PinjamanBelumDibayar*PinjamanAman,Pinjaman_Pokok,0), 0) -> Rp95.05 | G108: =IFERROR(IF(PinjamanBelumDibayar*PinjamanAman,JmlBunga,0), 0) -> Rp13.48 | H108: =IFERROR(IF(PinjamanBelumDibayar*PinjamanAman,SaldoAkhir,0), 0) -> Rp2,845.72
B109: =IFERROR(IF(PinjamanBelumDibayar*PinjamanAman,NomorPembayaran,""), "") -> 93 | C109: =IFERROR(IF(PinjamanBelumDibayar*PinjamanAman,TanggalPembayaran,TanggalMulaiPinjaman), TanggalMulaiPinjaman) -> 2027-04-18 | D109: =IFERROR(IF(PinjamanBelumDibayar*PinjamanAman,NilaiPinjaman,""), "") -> Rp2,845.72 | E109: =IFERROR(IF(PinjamanBelumDibayar*PinjamanAman,AngsuranBulanan,0), 0) -> Rp108.53 | F109: =IFERROR(IF(PinjamanBelumDibayar*PinjamanAman,Pinjaman_Pokok,0), 0) -> Rp95.48 | G109: =IFERROR(IF(PinjamanBelumDibayar*PinjamanAman,JmlBunga,0), 0) -> Rp13.04 | H109: =IFERROR(IF(PinjamanBelumDibayar*PinjamanAman,SaldoAkhir,0), 0) -> Rp2,750.24
B110: =IFERROR(IF(PinjamanBelumDibayar*PinjamanAman,NomorPembayaran,""), "") -> 94 | C110: =IFERROR(IF(PinjamanBelumDibayar*PinjamanAman,TanggalPembayaran,TanggalMulaiPinjaman), TanggalMulaiPinjaman) -> 2027-05-18 | D110: =IFERROR(IF(PinjamanBelumDibayar*PinjamanAman,NilaiPinjaman,""), "") -> Rp2,750.24 | E110: =IFERROR(IF(PinjamanBelumDibayar*PinjamanAman,AngsuranBulanan,0), 0) -> Rp108.53 | F110: =IFERROR(IF(PinjamanBelumDibayar*PinjamanAman,Pinjaman_Pokok,0), 0) -> Rp95.92 | G110: =IFERROR(IF(PinjamanBelumDibayar*PinjamanAman,JmlBunga,0), 0) -> Rp12.61 | H110: =IFERROR(IF(PinjamanBelumDibayar*PinjamanAman,SaldoAkhir,0), 0) -> Rp2,654.32
B111: =IFERROR(IF(PinjamanBelumDibayar*PinjamanAman,NomorPembayaran,""), "") -> 95 | C111: =IFERROR(IF(PinjamanBelumDibayar*PinjamanAman,TanggalPembayaran,TanggalMulaiPinjaman), TanggalMulaiPinjaman) -> 2027-06-18 | D111: =IFERROR(IF(PinjamanBelumDibayar*PinjamanAman,NilaiPinjaman,""), "") -> Rp2,654.32 | E111: =IFERROR(IF(PinjamanBelumDibayar*PinjamanAman,AngsuranBulanan,0), 0) -> Rp108.53 | F111: =IFERROR(IF(PinjamanBelumDibayar*PinjamanAman,Pinjaman_Pokok,0), 0) -> Rp96.36 | G111: =IFERROR(IF(PinjamanBelumDibayar*PinjamanAman,JmlBunga,0), 0) -> Rp12.17 | H111: =IFERROR(IF(PinjamanBelumDibayar*PinjamanAman,SaldoAkhir,0), 0) -> Rp2,557.96
B112: =IFERROR(IF(PinjamanBelumDibayar*PinjamanAman,NomorPembayaran,""), "") -> 96 | C112: =IFERROR(IF(PinjamanBelumDibayar*PinjamanAman,TanggalPembayaran,TanggalMulaiPinjaman), TanggalMulaiPinjaman) -> 2027-07-18 | D112: =IFERROR(IF(PinjamanBelumDibayar*PinjamanAman,NilaiPinjaman,""), "") -> Rp2,557.96 | E112: =IFERROR(IF(PinjamanBelumDibayar*PinjamanAman,AngsuranBulanan,0), 0) -> Rp108.53 | F112: =IFERROR(IF(PinjamanBelumDibayar*PinjamanAman,Pinjaman_Pokok,0), 0) -> Rp96.80 | G112: =IFERROR(IF(PinjamanBelumDibayar*PinjamanAman,JmlBunga,0), 0) -> Rp11.72 | H112: =IFERROR(IF(PinjamanBelumDibayar*PinjamanAman,SaldoAkhir,0), 0) -> Rp2,461.16
B113: =IFERROR(IF(PinjamanBelumDibayar*PinjamanAman,NomorPembayaran,""), "") -> 97 | C113: =IFERROR(IF(PinjamanBelumDibayar*PinjamanAman,TanggalPembayaran,TanggalMulaiPinjaman), TanggalMulaiPinjaman) -> 2027-08-18 | D113: =IFERROR(IF(PinjamanBelumDibayar*PinjamanAman,NilaiPinjaman,""), "") -> Rp2,461.16 | E113: =IFERROR(IF(PinjamanBelumDibayar*PinjamanAman,AngsuranBulanan,0), 0) -> Rp108.53 | F113: =IFERROR(IF(PinjamanBelumDibayar*PinjamanAman,Pinjaman_Pokok,0), 0) -> Rp97.25 | G113: =IFERROR(IF(PinjamanBelumDibayar*PinjamanAman,JmlBunga,0), 0) -> Rp11.28 | H113: =IFERROR(IF(PinjamanBelumDibayar*PinjamanAman,SaldoAkhir,0), 0) -> Rp2,363.91
B114: =IFERROR(IF(PinjamanBelumDibayar*PinjamanAman,NomorPembayaran,""), "") -> 98 | C114: =IFERROR(IF(PinjamanBelumDibayar*PinjamanAman,TanggalPembayaran,TanggalMulaiPinjaman), TanggalMulaiPinjaman) -> 2027-09-18 | D114: =IFERROR(IF(PinjamanBelumDibayar*PinjamanAman,NilaiPinjaman,""), "") -> Rp2,363.91 | E114: =IFERROR(IF(PinjamanBelumDibayar*PinjamanAman,AngsuranBulanan,0), 0) -> Rp108.53 | F114: =IFERROR(IF(PinjamanBelumDibayar*PinjamanAman,Pinjaman_Pokok,0), 0) -> Rp97.69 | G114: =IFERROR(IF(PinjamanBelumDibayar*PinjamanAman,JmlBunga,0), 0) -> Rp10.83 | H114: =IFERROR(IF(PinjamanBelumDibayar*PinjamanAman,SaldoAkhir,0), 0) -> Rp2,266.22
B115: =IFERROR(IF(PinjamanBelumDibayar*PinjamanAman,NomorPembayaran,""), "") -> 99 | C115: =IFERROR(IF(PinjamanBelumDibayar*PinjamanAman,TanggalPembayaran,TanggalMulaiPinjaman), TanggalMulaiPinjaman) -> 2027-10-18 | D115: =IFERROR(IF(PinjamanBelumDibayar*PinjamanAman,NilaiPinjaman,""), "") -> Rp2,266.22 | E115: =IFERROR(IF(PinjamanBelumDibayar*PinjamanAman,AngsuranBulanan,0), 0) -> Rp108.53 | F115: =IFERROR(IF(PinjamanBelumDibayar*PinjamanAman,Pinjaman_Pokok,0), 0) -> Rp98.14 | G115: =IFERROR(IF(PinjamanBelumDibayar*PinjamanAman,JmlBunga,0), 0) -> Rp10.39 | H115: =IFERROR(IF(PinjamanBelumDibayar*PinjamanAman,SaldoAkhir,0), 0) -> Rp2,168.08
B116: =IFERROR(IF(PinjamanBelumDibayar*PinjamanAman,NomorPembayaran,""), "") -> 100 | C116: =IFERROR(IF(PinjamanBelumDibayar*PinjamanAman,TanggalPembayaran,TanggalMulaiPinjaman), TanggalMulaiPinjaman) -> 2027-11-18 | D116: =IFERROR(IF(PinjamanBelumDibayar*PinjamanAman,NilaiPinjaman,""), "") -> Rp2,168.08 | E116: =IFERROR(IF(PinjamanBelumDibayar*PinjamanAman,AngsuranBulanan,0), 0) -> Rp108.53 | F116: =IFERROR(IF(PinjamanBelumDibayar*PinjamanAman,Pinjaman_Pokok,0), 0) -> Rp98.59 | G116: =IFERROR(IF(PinjamanBelumDibayar*PinjamanAman,JmlBunga,0), 0) -> Rp9.94 | H116: =IFERROR(IF(PinjamanBelumDibayar*PinjamanAman,SaldoAkhir,0), 0) -> Rp2,069.49
B117: =IFERROR(IF(PinjamanBelumDibayar*PinjamanAman,NomorPembayaran,""), "") -> 101 | C117: =IFERROR(IF(PinjamanBelumDibayar*PinjamanAman,TanggalPembayaran,TanggalMulaiPinjaman), TanggalMulaiPinjaman) -> 2027-12-18 | D117: =IFERROR(IF(PinjamanBelumDibayar*PinjamanAman,NilaiPinjaman,""), "") -> Rp2,069.49 | E117: =IFERROR(IF(PinjamanBelumDibayar*PinjamanAman,AngsuranBulanan,0), 0) -> Rp108.53 | F117: =IFERROR(IF(PinjamanBelumDibayar*PinjamanAman,Pinjaman_Pokok,0), 0) -> Rp99.04 | G117: =IFERROR(IF(PinjamanBelumDibayar*PinjamanAman,JmlBunga,0), 0) -> Rp9.49 | H117: =IFERROR(IF(PinjamanBelumDibayar*PinjamanAman,SaldoAkhir,0), 0) -> Rp1,970.45
B118: =IFERROR(IF(PinjamanBelumDibayar*PinjamanAman,NomorPembayaran,""), "") -> 102 | C118: =IFERROR(IF(PinjamanBelumDibayar*PinjamanAman,TanggalPembayaran,TanggalMulaiPinjaman), TanggalMulaiPinjaman) -> 2028-01-18 | D118: =IFERROR(IF(PinjamanBelumDibayar*PinjamanAman,NilaiPinjaman,""), "") -> Rp1,970.45 | E118: =IFERROR(IF(PinjamanBelumDibayar*PinjamanAman,AngsuranBulanan,0), 0) -> Rp108.53 | F118: =IFERROR(IF(PinjamanBelumDibayar*PinjamanAman,Pinjaman_Pokok,0), 0) -> Rp99.50 | G118: =IFERROR(IF(PinjamanBelumDibayar*PinjamanAman,JmlBunga,0), 0) -> Rp9.03 | H118: =IFERROR(IF(PinjamanBelumDibayar*PinjamanAman,SaldoAkhir,0), 0) -> Rp1,870.95
B119: =IFERROR(IF(PinjamanBelumDibayar*PinjamanAman,NomorPembayaran,""), "") -> 103 | C119: =IFERROR(IF(PinjamanBelumDibayar*PinjamanAman,TanggalPembayaran,TanggalMulaiPinjaman), TanggalMulaiPinjaman) -> 2028-02-18 | D119: =IFERROR(IF(PinjamanBelumDibayar*PinjamanAman,NilaiPinjaman,""), "") -> Rp1,870.95 | E119: =IFERROR(IF(PinjamanBelumDibayar*PinjamanAman,AngsuranBulanan,0), 0) -> Rp108.53 | F119: =IFERROR(IF(PinjamanBelumDibayar*PinjamanAman,Pinjaman_Pokok,0), 0) -> Rp99.95 | G119: =IFERROR(IF(PinjamanBelumDibayar*PinjamanAman,JmlBunga,0), 0) -> Rp8.58 | H119: =IFERROR(IF(PinjamanBelumDibayar*PinjamanAman,SaldoAkhir,0), 0) -> Rp1,771.00
B120: =IFERROR(IF(PinjamanBelumDibayar*PinjamanAman,NomorPembayaran,""), "") -> 104 | C120: =IFERROR(IF(PinjamanBelumDibayar*PinjamanAman,TanggalPembayaran,TanggalMulaiPinjaman), TanggalMulaiPinjaman) -> 2028-03-18 | D120: =IFERROR(IF(PinjamanBelumDibayar*PinjamanAman,NilaiPinjaman,""), "") -> Rp1,771.00 | E120: =IFERROR(IF(PinjamanBelumDibayar*PinjamanAman,AngsuranBulanan,0), 0) -> Rp108.53 | F120: =IFERROR(IF(PinjamanBelumDibayar*PinjamanAman,Pinjaman_Pokok,0), 0) -> Rp100.41 | G120: =IFERROR(IF(PinjamanBelumDibayar*PinjamanAman,JmlBunga,0), 0) -> Rp8.12 | H120: =IFERROR(IF(PinjamanBelumDibayar*PinjamanAman,SaldoAkhir,0), 0) -> Rp1,670.59
B121: =IFERROR(IF(PinjamanBelumDibayar*PinjamanAman,NomorPembayaran,""), "") -> 105 | C121: =IFERROR(IF(PinjamanBelumDibayar*PinjamanAman,TanggalPembayaran,TanggalMulaiPinjaman), TanggalMulaiPinjaman) -> 2028-04-18 | D121: =IFERROR(IF(PinjamanBelumDibayar*PinjamanAman,NilaiPinjaman,""), "") -> Rp1,670.59 | E121: =IFERROR(IF(PinjamanBelumDibayar*PinjamanAman,AngsuranBulanan,0), 0) -> Rp108.53 | F121: =IFERROR(IF(PinjamanBelumDibayar*PinjamanAman,Pinjaman_Pokok,0), 0) -> Rp100.87 | G121: =IFERROR(IF(PinjamanBelumDibayar*PinjamanAman,JmlBunga,0), 0) -> Rp7.66 | H121: =IFERROR(IF(PinjamanBelumDibayar*PinjamanAman,SaldoAkhir,0), 0) -> Rp1,569.72
B122: =IFERROR(IF(PinjamanBelumDibayar*PinjamanAman,NomorPembayaran,""), "") -> 106 | C122: =IFERROR(IF(PinjamanBelumDibayar*PinjamanAman,TanggalPembayaran,TanggalMulaiPinjaman), TanggalMulaiPinjaman) -> 2028-05-18 | D122: =IFERROR(IF(PinjamanBelumDibayar*PinjamanAman,NilaiPinjaman,""), "") -> Rp1,569.72 | E122: =IFERROR(IF(PinjamanBelumDibayar*PinjamanAman,AngsuranBulanan,0), 0) -> Rp108.53 | F122: =IFERROR(IF(PinjamanBelumDibayar*PinjamanAman,Pinjaman_Pokok,0), 0) -> Rp101.33 | G122: =IFERROR(IF(PinjamanBelumDibayar*PinjamanAman,JmlBunga,0), 0) -> Rp7.19 | H122: =IFERROR(IF(PinjamanBelumDibayar*PinjamanAman,SaldoAkhir,0), 0) -> Rp1,468.39
B123: =IFERROR(IF(PinjamanBelumDibayar*PinjamanAman,NomorPembayaran,""), "") -> 107 | C123: =IFERROR(IF(PinjamanBelumDibayar*PinjamanAman,TanggalPembayaran,TanggalMulaiPinjaman), TanggalMulaiPinjaman) -> 2028-06-18 | D123: =IFERROR(IF(PinjamanBelumDibayar*PinjamanAman,NilaiPinjaman,""), "") -> Rp1,468.39 | E123: =IFERROR(IF(PinjamanBelumDibayar*PinjamanAman,AngsuranBulanan,0), 0) -> Rp108.53 | F123: =IFERROR(IF(PinjamanBelumDibayar*PinjamanAman,Pinjaman_Pokok,0), 0) -> Rp101.80 | G123: =IFERROR(IF(PinjamanBelumDibayar*PinjamanAman,JmlBunga,0), 0) -> Rp6.73 | H123: =IFERROR(IF(PinjamanBelumDibayar*PinjamanAman,SaldoAkhir,0), 0) -> Rp1,366.60
B124: =IFERROR(IF(PinjamanBelumDibayar*PinjamanAman,NomorPembayaran,""), "") -> 108 | C124: =IFERROR(IF(PinjamanBelumDibayar*PinjamanAman,TanggalPembayaran,TanggalMulaiPinjaman), TanggalMulaiPinjaman) -> 2028-07-18 | D124: =IFERROR(IF(PinjamanBelumDibayar*PinjamanAman,NilaiPinjaman,""), "") -> Rp1,366.60 | E124: =IFERROR(IF(PinjamanBelumDibayar*PinjamanAman,AngsuranBulanan,0), 0) -> Rp108.53 | F124: =IFERROR(IF(PinjamanBelumDibayar*PinjamanAman,Pinjaman_Pokok,0), 0) -> Rp102.26 | G124: =IFERROR(IF(PinjamanBelumDibayar*PinjamanAman,JmlBunga,0), 0) -> Rp6.26 | H124: =IFERROR(IF(PinjamanBelumDibayar*PinjamanAman,SaldoAkhir,0), 0) -> Rp1,264.33
B125: =IFERROR(IF(PinjamanBelumDibayar*PinjamanAman,NomorPembayaran,""), "") -> 109 | C125: =IFERROR(IF(PinjamanBelumDibayar*PinjamanAman,TanggalPembayaran,TanggalMulaiPinjaman), TanggalMulaiPinjaman) -> 2028-08-18 | D125: =IFERROR(IF(PinjamanBelumDibayar*PinjamanAman,NilaiPinjaman,""), "") -> Rp1,264.33 | E125: =IFERROR(IF(PinjamanBelumDibayar*PinjamanAman,AngsuranBulanan,0), 0) -> Rp108.53 | F125: =IFERROR(IF(PinjamanBelumDibayar*PinjamanAman,Pinjaman_Pokok,0), 0) -> Rp102.73 | G125: =IFERROR(IF(PinjamanBelumDibayar*PinjamanAman,JmlBunga,0), 0) -> Rp5.79 | H125: =IFERROR(IF(PinjamanBelumDibayar*PinjamanAman,SaldoAkhir,0), 0) -> Rp1,161.60
B126: =IFERROR(IF(PinjamanBelumDibayar*PinjamanAman,NomorPembayaran,""), "") -> 110 | C126: =IFERROR(IF(PinjamanBelumDibayar*PinjamanAman,TanggalPembayaran,TanggalMulaiPinjaman), TanggalMulaiPinjaman) -> 2028-09-18 | D126: =IFERROR(IF(PinjamanBelumDibayar*PinjamanAman,NilaiPinjaman,""), "") -> Rp1,161.60 | E126: =IFERROR(IF(PinjamanBelumDibayar*PinjamanAman,AngsuranBulanan,0), 0) -> Rp108.53 | F126: =IFERROR(IF(PinjamanBelumDibayar*PinjamanAman,Pinjaman_Pokok,0), 0) -> Rp103.20 | G126: =IFERROR(IF(PinjamanBelumDibayar*PinjamanAman,JmlBunga,0), 0) -> Rp5.32 | H126: =IFERROR(IF(PinjamanBelumDibayar*PinjamanAman,SaldoAkhir,0), 0) -> Rp1,058.40
B127: =IFERROR(IF(PinjamanBelumDibayar*PinjamanAman,NomorPembayaran,""), "") -> 111 | C127: =IFERROR(IF(PinjamanBelumDibayar*PinjamanAman,TanggalPembayaran,TanggalMulaiPinjaman), TanggalMulaiPinjaman) -> 2028-10-18 | D127: =IFERROR(IF(PinjamanBelumDibayar*PinjamanAman,NilaiPinjaman,""), "") -> Rp1,058.40 | E127: =IFERROR(IF(PinjamanBelumDibayar*PinjamanAman,AngsuranBulanan,0), 0) -> Rp108.53 | F127: =IFERROR(IF(PinjamanBelumDibayar*PinjamanAman,Pinjaman_Pokok,0), 0) -> Rp103.68 | G127: =IFERROR(IF(PinjamanBelumDibayar*PinjamanAman,JmlBunga,0), 0) -> Rp4.85 | H127: =IFERROR(IF(PinjamanBelumDibayar*PinjamanAman,SaldoAkhir,0), 0) -> Rp954.72
B128: =IFERROR(IF(PinjamanBelumDibayar*PinjamanAman,NomorPembayaran,""), "") -> 112 | C128: =IFERROR(IF(PinjamanBelumDibayar*PinjamanAman,TanggalPembayaran,TanggalMulaiPinjaman), TanggalMulaiPinjaman) -> 2028-11-18 | D128: =IFERROR(IF(PinjamanBelumDibayar*PinjamanAman,NilaiPinjaman,""), "") -> Rp954.72 | E128: =IFERROR(IF(PinjamanBelumDibayar*PinjamanAman,AngsuranBulanan,0), 0) -> Rp108.53 | F128: =IFERROR(IF(PinjamanBelumDibayar*PinjamanAman,Pinjaman_Pokok,0), 0) -> Rp104.15 | G128: =IFERROR(IF(PinjamanBelumDibayar*PinjamanAman,JmlBunga,0), 0) -> Rp4.38 | H128: =IFERROR(IF(PinjamanBelumDibayar*PinjamanAman,SaldoAkhir,0), 0) -> Rp850.57
B129: =IFERROR(IF(PinjamanBelumDibayar*PinjamanAman,NomorPembayaran,""), "") -> 113 | C129: =IFERROR(IF(PinjamanBelumDibayar*PinjamanAman,TanggalPembayaran,TanggalMulaiPinjaman), TanggalMulaiPinjaman) -> 2028-12-18 | D129: =IFERROR(IF(PinjamanBelumDibayar*PinjamanAman,NilaiPinjaman,""), "") -> Rp850.57 | E129: =IFERROR(IF(PinjamanBelumDibayar*PinjamanAman,AngsuranBulanan,0), 0) -> Rp108.53 | F129: =IFERROR(IF(PinjamanBelumDibayar*PinjamanAman,Pinjaman_Pokok,0), 0) -> Rp104.63 | G129: =IFERROR(IF(PinjamanBelumDibayar*PinjamanAman,JmlBunga,0), 0) -> Rp3.90 | H129: =IFERROR(IF(PinjamanBelumDibayar*PinjamanAman,SaldoAkhir,0), 0) -> Rp745.95
B130: =IFERROR(IF(PinjamanBelumDibayar*PinjamanAman,NomorPembayaran,""), "") -> 114 | C130: =IFERROR(IF(PinjamanBelumDibayar*PinjamanAman,TanggalPembayaran,TanggalMulaiPinjaman), TanggalMulaiPinjaman) -> 2029-01-18 | D130: =IFERROR(IF(PinjamanBelumDibayar*PinjamanAman,NilaiPinjaman,""), "") -> Rp745.95 | E130: =IFERROR(IF(PinjamanBelumDibayar*PinjamanAman,AngsuranBulanan,0), 0) -> Rp108.53 | F130: =IFERROR(IF(PinjamanBelumDibayar*PinjamanAman,Pinjaman_Pokok,0), 0) -> Rp105.11 | G130: =IFERROR(IF(PinjamanBelumDibayar*PinjamanAman,JmlBunga,0), 0) -> Rp3.42 | H130: =IFERROR(IF(PinjamanBelumDibayar*PinjamanAman,SaldoAkhir,0), 0) -> Rp640.84
B131: =IFERROR(IF(PinjamanBelumDibayar*PinjamanAman,NomorPembayaran,""), "") -> 115 | C131: =IFERROR(IF(PinjamanBelumDibayar*PinjamanAman,TanggalPembayaran,TanggalMulaiPinjaman), TanggalMulaiPinjaman) -> 2029-02-18 | D131: =IFERROR(IF(PinjamanBelumDibayar*PinjamanAman,NilaiPinjaman,""), "") -> Rp640.84 | E131: =IFERROR(IF(PinjamanBelumDibayar*PinjamanAman,AngsuranBulanan,0), 0) -> Rp108.53 | F131: =IFERROR(IF(PinjamanBelumDibayar*PinjamanAman,Pinjaman_Pokok,0), 0) -> Rp105.59 | G131: =IFERROR(IF(PinjamanBelumDibayar*PinjamanAman,JmlBunga,0), 0) -> Rp2.94 | H131: =IFERROR(IF(PinjamanBelumDibayar*PinjamanAman,SaldoAkhir,0), 0) -> Rp535.25
B132: =IFERROR(IF(PinjamanBelumDibayar*PinjamanAman,NomorPembayaran,""), "") -> 116 | C132: =IFERROR(IF(PinjamanBelumDibayar*PinjamanAman,TanggalPembayaran,TanggalMulaiPinjaman), TanggalMulaiPinjaman) -> 2029-03-18 | D132: =IFERROR(IF(PinjamanBelumDibayar*PinjamanAman,NilaiPinjaman,""), "") -> Rp535.25 | E132: =IFERROR(IF(PinjamanBelumDibayar*PinjamanAman,AngsuranBulanan,0), 0) -> Rp108.53 | F132: =IFERROR(IF(PinjamanBelumDibayar*PinjamanAman,Pinjaman_Pokok,0), 0) -> Rp106.07 | G132: =IFERROR(IF(PinjamanBelumDibayar*PinjamanAman,JmlBunga,0), 0) -> Rp2.45 | H132: =IFERROR(IF(PinjamanBelumDibayar*PinjamanAman,SaldoAkhir,0), 0) -> Rp429.18
B133: =IFERROR(IF(PinjamanBelumDibayar*PinjamanAman,NomorPembayaran,""), "") -> 117 | C133: =IFERROR(IF(PinjamanBelumDibayar*PinjamanAman,TanggalPembayaran,TanggalMulaiPinjaman), TanggalMulaiPinjaman) -> 2029-04-18 | D133: =IFERROR(IF(PinjamanBelumDibayar*PinjamanAman,NilaiPinjaman,""), "") -> Rp429.18 | E133: =IFERROR(IF(PinjamanBelumDibayar*PinjamanAman,AngsuranBulanan,0), 0) -> Rp108.53 | F133: =IFERROR(IF(PinjamanBelumDibayar*PinjamanAman,Pinjaman_Pokok,0), 0) -> Rp106.56 | G133: =IFERROR(IF(PinjamanBelumDibayar*PinjamanAman,JmlBunga,0), 0) -> Rp1.97 | H133: =IFERROR(IF(PinjamanBelumDibayar*PinjamanAman,SaldoAkhir,0), 0) -> Rp322.62
B134: =IFERROR(IF(PinjamanBelumDibayar*PinjamanAman,NomorPembayaran,""), "") -> 118 | C134: =IFERROR(IF(PinjamanBelumDibayar*PinjamanAman,TanggalPembayaran,TanggalMulaiPinjaman), TanggalMulaiPinjaman) -> 2029-05-18 | D134: =IFERROR(IF(PinjamanBelumDibayar*PinjamanAman,NilaiPinjaman,""), "") -> Rp322.62 | E134: =IFERROR(IF(PinjamanBelumDibayar*PinjamanAman,AngsuranBulanan,0), 0) -> Rp108.53 | F134: =IFERROR(IF(PinjamanBelumDibayar*PinjamanAman,Pinjaman_Pokok,0), 0) -> Rp107.05 | G134: =IFERROR(IF(PinjamanBelumDibayar*PinjamanAman,JmlBunga,0), 0) -> Rp1.48 | H134: =IFERROR(IF(PinjamanBelumDibayar*PinjamanAman,SaldoAkhir,0), 0) -> Rp215.57
B135: =IFERROR(IF(PinjamanBelumDibayar*PinjamanAman,NomorPembayaran,""), "") -> 119 | C135: =IFERROR(IF(PinjamanBelumDibayar*PinjamanAman,TanggalPembayaran,TanggalMulaiPinjaman), TanggalMulaiPinjaman) -> 2029-06-18 | D135: =IFERROR(IF(PinjamanBelumDibayar*PinjamanAman,NilaiPinjaman,""), "") -> Rp215.57 | E135: =IFERROR(IF(PinjamanBelumDibayar*PinjamanAman,AngsuranBulanan,0), 0) -> Rp108.53 | F135: =IFERROR(IF(PinjamanBelumDibayar*PinjamanAman,Pinjaman_Pokok,0), 0) -> Rp107.54 | G135: =IFERROR(IF(PinjamanBelumDibayar*PinjamanAman,JmlBunga,0), 0) -> Rp0.99 | H135: =IFERROR(IF(PinjamanBelumDibayar*PinjamanAman,SaldoAkhir,0), 0) -> Rp108.03
B136: =IFERROR(IF(PinjamanBelumDibayar*PinjamanAman,NomorPembayaran,""), "") -> 120 | C136: =IFERROR(IF(PinjamanBelumDibayar*PinjamanAman,TanggalPembayaran,TanggalMulaiPinjaman), TanggalMulaiPinjaman) -> 2029-07-18 | D136: =IFERROR(IF(PinjamanBelumDibayar*PinjamanAman,NilaiPinjaman,""), "") -> Rp108.03 | E136: =IFERROR(IF(PinjamanBelumDibayar*PinjamanAman,AngsuranBulanan,0), 0) -> Rp108.53 | F136: =IFERROR(IF(PinjamanBelumDibayar*PinjamanAman,Pinjaman_Pokok,0), 0) -> Rp108.03 | G136: =IFERROR(IF(PinjamanBelumDibayar*PinjamanAman,JmlBunga,0), 0) -> Rp0.50 | H136: =IFERROR(IF(PinjamanBelumDibayar*PinjamanAman,SaldoAkhir,0), 0) -> -Rp0.00
B137: =IFERROR(IF(PinjamanBelumDibayar*PinjamanAman,NomorPembayaran,""), "") ->  | C137: =IFERROR(IF(PinjamanBelumDibayar*PinjamanAman,TanggalPembayaran,TanggalMulaiPinjaman), TanggalMulaiPinjaman) -> 2019-07-18 | D137: =IFERROR(IF(PinjamanBelumDibayar*PinjamanAman,NilaiPinjaman,""), "") ->  | E137: =IFERROR(IF(PinjamanBelumDibayar*PinjamanAman,AngsuranBulanan,0), 0) -> Rp0.00 | F137: =IFERROR(IF(PinjamanBelumDibayar*PinjamanAman,Pinjaman_Pokok,0), 0) -> Rp0.00 | G137: =IFERROR(IF(PinjamanBelumDibayar*PinjamanAman,JmlBunga,0), 0) -> Rp0.00 | H137: =IFERROR(IF(PinjamanBelumDibayar*PinjamanAman,SaldoAkhir,0), 0) -> Rp0.00
B138: =IFERROR(IF(PinjamanBelumDibayar*PinjamanAman,NomorPembayaran,""), "") ->  | C138: =IFERROR(IF(PinjamanBelumDibayar*PinjamanAman,TanggalPembayaran,TanggalMulaiPinjaman), TanggalMulaiPinjaman) -> 2019-07-18 | D138: =IFERROR(IF(PinjamanBelumDibayar*PinjamanAman,NilaiPinjaman,""), "") ->  | E138: =IFERROR(IF(PinjamanBelumDibayar*PinjamanAman,AngsuranBulanan,0), 0) -> Rp0.00 | F138: =IFERROR(IF(PinjamanBelumDibayar*PinjamanAman,Pinjaman_Pokok,0), 0) -> Rp0.00 | G138: =IFERROR(IF(PinjamanBelumDibayar*PinjamanAman,JmlBunga,0), 0) -> Rp0.00 | H138: =IFERROR(IF(PinjamanBelumDibayar*PinjamanAman,SaldoAkhir,0), 0) -> Rp0.00
B139: =IFERROR(IF(PinjamanBelumDibayar*PinjamanAman,NomorPembayaran,""), "") ->  | C139: =IFERROR(IF(PinjamanBelumDibayar*PinjamanAman,TanggalPembayaran,TanggalMulaiPinjaman), TanggalMulaiPinjaman) -> 2019-07-18 | D139: =IFERROR(IF(PinjamanBelumDibayar*PinjamanAman,NilaiPinjaman,""), "") ->  | E139: =IFERROR(IF(PinjamanBelumDibayar*PinjamanAman,AngsuranBulanan,0), 0) -> Rp0.00 | F139: =IFERROR(IF(PinjamanBelumDibayar*PinjamanAman,Pinjaman_Pokok,0), 0) -> Rp0.00 | G139: =IFERROR(IF(PinjamanBelumDibayar*PinjamanAman,JmlBunga,0), 0) -> Rp0.00 | H139: =IFERROR(IF(PinjamanBelumDibayar*PinjamanAman,SaldoAkhir,0), 0) -> Rp0.00
B140: =IFERROR(IF(PinjamanBelumDibayar*PinjamanAman,NomorPembayaran,""), "") ->  | C140: =IFERROR(IF(PinjamanBelumDibayar*PinjamanAman,TanggalPembayaran,TanggalMulaiPinjaman), TanggalMulaiPinjaman) -> 2019-07-18 | D140: =IFERROR(IF(PinjamanBelumDibayar*PinjamanAman,NilaiPinjaman,""), "") ->  | E140: =IFERROR(IF(PinjamanBelumDibayar*PinjamanAman,AngsuranBulanan,0), 0) -> Rp0.00 | F140: =IFERROR(IF(PinjamanBelumDibayar*PinjamanAman,Pinjaman_Pokok,0), 0) -> Rp0.00 | G140: =IFERROR(IF(PinjamanBelumDibayar*PinjamanAman,JmlBunga,0), 0) -> Rp0.00 | H140: =IFERROR(IF(PinjamanBelumDibayar*PinjamanAman,SaldoAkhir,0), 0) -> Rp0.00
B141: =IFERROR(IF(PinjamanBelumDibayar*PinjamanAman,NomorPembayaran,""), "") ->  | C141: =IFERROR(IF(PinjamanBelumDibayar*PinjamanAman,TanggalPembayaran,TanggalMulaiPinjaman), TanggalMulaiPinjaman) -> 2019-07-18 | D141: =IFERROR(IF(PinjamanBelumDibayar*PinjamanAman,NilaiPinjaman,""), "") ->  | E141: =IFERROR(IF(PinjamanBelumDibayar*PinjamanAman,AngsuranBulanan,0), 0) -> Rp0.00 | F141: =IFERROR(IF(PinjamanBelumDibayar*PinjamanAman,Pinjaman_Pokok,0), 0) -> Rp0.00 | G141: =IFERROR(IF(PinjamanBelumDibayar*PinjamanAman,JmlBunga,0), 0) -> Rp0.00 | H141: =IFERROR(IF(PinjamanBelumDibayar*PinjamanAman,SaldoAkhir,0), 0) -> Rp0.00
B142: =IFERROR(IF(PinjamanBelumDibayar*PinjamanAman,NomorPembayaran,""), "") ->  | C142: =IFERROR(IF(PinjamanBelumDibayar*PinjamanAman,TanggalPembayaran,TanggalMulaiPinjaman), TanggalMulaiPinjaman) -> 2019-07-18 | D142: =IFERROR(IF(PinjamanBelumDibayar*PinjamanAman,NilaiPinjaman,""), "") ->  | E142: =IFERROR(IF(PinjamanBelumDibayar*PinjamanAman,AngsuranBulanan,0), 0) -> Rp0.00 | F142: =IFERROR(IF(PinjamanBelumDibayar*PinjamanAman,Pinjaman_Pokok,0), 0) -> Rp0.00 | G142: =IFERROR(IF(PinjamanBelumDibayar*PinjamanAman,JmlBunga,0), 0) -> Rp0.00 | H142: =IFERROR(IF(PinjamanBelumDibayar*PinjamanAman,SaldoAkhir,0), 0) -> Rp0.00
B143: =IFERROR(IF(PinjamanBelumDibayar*PinjamanAman,NomorPembayaran,""), "") ->  | C143: =IFERROR(IF(PinjamanBelumDibayar*PinjamanAman,TanggalPembayaran,TanggalMulaiPinjaman), TanggalMulaiPinjaman) -> 2019-07-18 | D143: =IFERROR(IF(PinjamanBelumDibayar*PinjamanAman,NilaiPinjaman,""), "") ->  | E143: =IFERROR(IF(PinjamanBelumDibayar*PinjamanAman,AngsuranBulanan,0), 0) -> Rp0.00 | F143: =IFERROR(IF(PinjamanBelumDibayar*PinjamanAman,Pinjaman_Pokok,0), 0) -> Rp0.00 | G143: =IFERROR(IF(PinjamanBelumDibayar*PinjamanAman,JmlBunga,0), 0) -> Rp0.00 | H143: =IFERROR(IF(PinjamanBelumDibayar*PinjamanAman,SaldoAkhir,0), 0) -> Rp0.00
B144: =IFERROR(IF(PinjamanBelumDibayar*PinjamanAman,NomorPembayaran,""), "") ->  | C144: =IFERROR(IF(PinjamanBelumDibayar*PinjamanAman,TanggalPembayaran,TanggalMulaiPinjaman), TanggalMulaiPinjaman) -> 2019-07-18 | D144: =IFERROR(IF(PinjamanBelumDibayar*PinjamanAman,NilaiPinjaman,""), "") ->  | E144: =IFERROR(IF(PinjamanBelumDibayar*PinjamanAman,AngsuranBulanan,0), 0) -> Rp0.00 | F144: =IFERROR(IF(PinjamanBelumDibayar*PinjamanAman,Pinjaman_Pokok,0), 0) -> Rp0.00 | G144: =IFERROR(IF(PinjamanBelumDibayar*PinjamanAman,JmlBunga,0), 0) -> Rp0.00 | H144: =IFERROR(IF(PinjamanBelumDibayar*PinjamanAman,SaldoAkhir,0), 0) -> Rp0.00
B145: =IFERROR(IF(PinjamanBelumDibayar*PinjamanAman,NomorPembayaran,""), "") ->  | C145: =IFERROR(IF(PinjamanBelumDibayar*PinjamanAman,TanggalPembayaran,TanggalMulaiPinjaman), TanggalMulaiPinjaman) -> 2019-07-18 | D145: =IFERROR(IF(PinjamanBelumDibayar*PinjamanAman,NilaiPinjaman,""), "") ->  | E145: =IFERROR(IF(PinjamanBelumDibayar*PinjamanAman,AngsuranBulanan,0), 0) -> Rp0.00 | F145: =IFERROR(IF(PinjamanBelumDibayar*PinjamanAman,Pinjaman_Pokok,0), 0) -> Rp0.00 | G145: =IFERROR(IF(PinjamanBelumDibayar*PinjamanAman,JmlBunga,0), 0) -> Rp0.00 | H145: =IFERROR(IF(PinjamanBelumDibayar*PinjamanAman,SaldoAkhir,0), 0) -> Rp0.00
B146: =IFERROR(IF(PinjamanBelumDibayar*PinjamanAman,NomorPembayaran,""), "") ->  | C146: =IFERROR(IF(PinjamanBelumDibayar*PinjamanAman,TanggalPembayaran,TanggalMulaiPinjaman), TanggalMulaiPinjaman) -> 2019-07-18 | D146: =IFERROR(IF(PinjamanBelumDibayar*PinjamanAman,NilaiPinjaman,""), "") ->  | E146: =IFERROR(IF(PinjamanBelumDibayar*PinjamanAman,AngsuranBulanan,0), 0) -> Rp0.00 | F146: =IFERROR(IF(PinjamanBelumDibayar*PinjamanAman,Pinjaman_Pokok,0), 0) -> Rp0.00 | G146: =IFERROR(IF(PinjamanBelumDibayar*PinjamanAman,JmlBunga,0), 0) -> Rp0.00 | H146: =IFERROR(IF(PinjamanBelumDibayar*PinjamanAman,SaldoAkhir,0), 0) -> Rp0.00
B147: =IFERROR(IF(PinjamanBelumDibayar*PinjamanAman,NomorPembayaran,""), "") ->  | C147: =IFERROR(IF(PinjamanBelumDibayar*PinjamanAman,TanggalPembayaran,TanggalMulaiPinjaman), TanggalMulaiPinjaman) -> 2019-07-18 | D147: =IFERROR(IF(PinjamanBelumDibayar*PinjamanAman,NilaiPinjaman,""), "") ->  | E147: =IFERROR(IF(PinjamanBelumDibayar*PinjamanAman,AngsuranBulanan,0), 0) -> Rp0.00 | F147: =IFERROR(IF(PinjamanBelumDibayar*PinjamanAman,Pinjaman_Pokok,0), 0) -> Rp0.00 | G147: =IFERROR(IF(PinjamanBelumDibayar*PinjamanAman,JmlBunga,0), 0) -> Rp0.00 | H147: =IFERROR(IF(PinjamanBelumDibayar*PinjamanAman,SaldoAkhir,0), 0) -> Rp0.00
B148: =IFERROR(IF(PinjamanBelumDibayar*PinjamanAman,NomorPembayaran,""), "") ->  | C148: =IFERROR(IF(PinjamanBelumDibayar*PinjamanAman,TanggalPembayaran,TanggalMulaiPinjaman), TanggalMulaiPinjaman) -> 2019-07-18 | D148: =IFERROR(IF(PinjamanBelumDibayar*PinjamanAman,NilaiPinjaman,""), "") ->  | E148: =IFERROR(IF(PinjamanBelumDibayar*PinjamanAman,AngsuranBulanan,0), 0) -> Rp0.00 | F148: =IFERROR(IF(PinjamanBelumDibayar*PinjamanAman,Pinjaman_Pokok,0), 0) -> Rp0.00 | G148: =IFERROR(IF(PinjamanBelumDibayar*PinjamanAman,JmlBunga,0), 0) -> Rp0.00 | H148: =IFERROR(IF(PinjamanBelumDibayar*PinjamanAman,SaldoAkhir,0), 0) -> Rp0.00
B149: =IFERROR(IF(PinjamanBelumDibayar*PinjamanAman,NomorPembayaran,""), "") ->  | C149: =IFERROR(IF(PinjamanBelumDibayar*PinjamanAman,TanggalPembayaran,TanggalMulaiPinjaman), TanggalMulaiPinjaman) -> 2019-07-18 | D149: =IFERROR(IF(PinjamanBelumDibayar*PinjamanAman,NilaiPinjaman,""), "") ->  | E149: =IFERROR(IF(PinjamanBelumDibayar*PinjamanAman,AngsuranBulanan,0), 0) -> Rp0.00 | F149: =IFERROR(IF(PinjamanBelumDibayar*PinjamanAman,Pinjaman_Pokok,0), 0) -> Rp0.00 | G149: =IFERROR(IF(PinjamanBelumDibayar*PinjamanAman,JmlBunga,0), 0) -> Rp0.00 | H149: =IFERROR(IF(PinjamanBelumDibayar*PinjamanAman,SaldoAkhir,0), 0) -> Rp0.00
B150: =IFERROR(IF(PinjamanBelumDibayar*PinjamanAman,NomorPembayaran,""), "") ->  | C150: =IFERROR(IF(PinjamanBelumDibayar*PinjamanAman,TanggalPembayaran,TanggalMulaiPinjaman), TanggalMulaiPinjaman) -> 2019-07-18 | D150: =IFERROR(IF(PinjamanBelumDibayar*PinjamanAman,NilaiPinjaman,""), "") ->  | E150: =IFERROR(IF(PinjamanBelumDibayar*PinjamanAman,AngsuranBulanan,0), 0) -> Rp0.00 | F150: =IFERROR(IF(PinjamanBelumDibayar*PinjamanAman,Pinjaman_Pokok,0), 0) -> Rp0.00 | G150: =IFERROR(IF(PinjamanBelumDibayar*PinjamanAman,JmlBunga,0), 0) -> Rp0.00 | H150: =IFERROR(IF(PinjamanBelumDibayar*PinjamanAman,SaldoAkhir,0), 0) -> Rp0.00
B151: =IFERROR(IF(PinjamanBelumDibayar*PinjamanAman,NomorPembayaran,""), "") ->  | C151: =IFERROR(IF(PinjamanBelumDibayar*PinjamanAman,TanggalPembayaran,TanggalMulaiPinjaman), TanggalMulaiPinjaman) -> 2019-07-18 | D151: =IFERROR(IF(PinjamanBelumDibayar*PinjamanAman,NilaiPinjaman,""), "") ->  | E151: =IFERROR(IF(PinjamanBelumDibayar*PinjamanAman,AngsuranBulanan,0), 0) -> Rp0.00 | F151: =IFERROR(IF(PinjamanBelumDibayar*PinjamanAman,Pinjaman_Pokok,0), 0) -> Rp0.00 | G151: =IFERROR(IF(PinjamanBelumDibayar*PinjamanAman,JmlBunga,0), 0) -> Rp0.00 | H151: =IFERROR(IF(PinjamanBelumDibayar*PinjamanAman,SaldoAkhir,0), 0) -> Rp0.00
B152: =IFERROR(IF(PinjamanBelumDibayar*PinjamanAman,NomorPembayaran,""), "") ->  | C152: =IFERROR(IF(PinjamanBelumDibayar*PinjamanAman,TanggalPembayaran,TanggalMulaiPinjaman), TanggalMulaiPinjaman) -> 2019-07-18 | D152: =IFERROR(IF(PinjamanBelumDibayar*PinjamanAman,NilaiPinjaman,""), "") ->  | E152: =IFERROR(IF(PinjamanBelumDibayar*PinjamanAman,AngsuranBulanan,0), 0) -> Rp0.00 | F152: =IFERROR(IF(PinjamanBelumDibayar*PinjamanAman,Pinjaman_Pokok,0), 0) -> Rp0.00 | G152: =IFERROR(IF(PinjamanBelumDibayar*PinjamanAman,JmlBunga,0), 0) -> Rp0.00 | H152: =IFERROR(IF(PinjamanBelumDibayar*PinjamanAman,SaldoAkhir,0), 0) -> Rp0.00
B153: =IFERROR(IF(PinjamanBelumDibayar*PinjamanAman,NomorPembayaran,""), "") ->  | C153: =IFERROR(IF(PinjamanBelumDibayar*PinjamanAman,TanggalPembayaran,TanggalMulaiPinjaman), TanggalMulaiPinjaman) -> 2019-07-18 | D153: =IFERROR(IF(PinjamanBelumDibayar*PinjamanAman,NilaiPinjaman,""), "") ->  | E153: =IFERROR(IF(PinjamanBelumDibayar*PinjamanAman,AngsuranBulanan,0), 0) -> Rp0.00 | F153: =IFERROR(IF(PinjamanBelumDibayar*PinjamanAman,Pinjaman_Pokok,0), 0) -> Rp0.00 | G153: =IFERROR(IF(PinjamanBelumDibayar*PinjamanAman,JmlBunga,0), 0) -> Rp0.00 | H153: =IFERROR(IF(PinjamanBelumDibayar*PinjamanAman,SaldoAkhir,0), 0) -> Rp0.00
B154: =IFERROR(IF(PinjamanBelumDibayar*PinjamanAman,NomorPembayaran,""), "") ->  | C154: =IFERROR(IF(PinjamanBelumDibayar*PinjamanAman,TanggalPembayaran,TanggalMulaiPinjaman), TanggalMulaiPinjaman) -> 2019-07-18 | D154: =IFERROR(IF(PinjamanBelumDibayar*PinjamanAman,NilaiPinjaman,""), "") ->  | E154: =IFERROR(IF(PinjamanBelumDibayar*PinjamanAman,AngsuranBulanan,0), 0) -> Rp0.00 | F154: =IFERROR(IF(PinjamanBelumDibayar*PinjamanAman,Pinjaman_Pokok,0), 0) -> Rp0.00 | G154: =IFERROR(IF(PinjamanBelumDibayar*PinjamanAman,JmlBunga,0), 0) -> Rp0.00 | H154: =IFERROR(IF(PinjamanBelumDibayar*PinjamanAman,SaldoAkhir,0), 0) -> Rp0.00
B155: =IFERROR(IF(PinjamanBelumDibayar*PinjamanAman,NomorPembayaran,""), "") ->  | C155: =IFERROR(IF(PinjamanBelumDibayar*PinjamanAman,TanggalPembayaran,TanggalMulaiPinjaman), TanggalMulaiPinjaman) -> 2019-07-18 | D155: =IFERROR(IF(PinjamanBelumDibayar*PinjamanAman,NilaiPinjaman,""), "") ->  | E155: =IFERROR(IF(PinjamanBelumDibayar*PinjamanAman,AngsuranBulanan,0), 0) -> Rp0.00 | F155: =IFERROR(IF(PinjamanBelumDibayar*PinjamanAman,Pinjaman_Pokok,0), 0) -> Rp0.00 | G155: =IFERROR(IF(PinjamanBelumDibayar*PinjamanAman,JmlBunga,0), 0) -> Rp0.00 | H155: =IFERROR(IF(PinjamanBelumDibayar*PinjamanAman,SaldoAkhir,0), 0) -> Rp0.00
B156: =IFERROR(IF(PinjamanBelumDibayar*PinjamanAman,NomorPembayaran,""), "") ->  | C156: =IFERROR(IF(PinjamanBelumDibayar*PinjamanAman,TanggalPembayaran,TanggalMulaiPinjaman), TanggalMulaiPinjaman) -> 2019-07-18 | D156: =IFERROR(IF(PinjamanBelumDibayar*PinjamanAman,NilaiPinjaman,""), "") ->  | E156: =IFERROR(IF(PinjamanBelumDibayar*PinjamanAman,AngsuranBulanan,0), 0) -> Rp0.00 | F156: =IFERROR(IF(PinjamanBelumDibayar*PinjamanAman,Pinjaman_Pokok,0), 0) -> Rp0.00 | G156: =IFERROR(IF(PinjamanBelumDibayar*PinjamanAman,JmlBunga,0), 0) -> Rp0.00 | H156: =IFERROR(IF(PinjamanBelumDibayar*PinjamanAman,SaldoAkhir,0), 0) -> Rp0.00
B157: =IFERROR(IF(PinjamanBelumDibayar*PinjamanAman,NomorPembayaran,""), "") ->  | C157: =IFERROR(IF(PinjamanBelumDibayar*PinjamanAman,TanggalPembayaran,TanggalMulaiPinjaman), TanggalMulaiPinjaman) -> 2019-07-18 | D157: =IFERROR(IF(PinjamanBelumDibayar*PinjamanAman,NilaiPinjaman,""), "") ->  | E157: =IFERROR(IF(PinjamanBelumDibayar*PinjamanAman,AngsuranBulanan,0), 0) -> Rp0.00 | F157: =IFERROR(IF(PinjamanBelumDibayar*PinjamanAman,Pinjaman_Pokok,0), 0) -> Rp0.00 | G157: =IFERROR(IF(PinjamanBelumDibayar*PinjamanAman,JmlBunga,0), 0) -> Rp0.00 | H157: =IFERROR(IF(PinjamanBelumDibayar*PinjamanAman,SaldoAkhir,0), 0) -> Rp0.00
B158: =IFERROR(IF(PinjamanBelumDibayar*PinjamanAman,NomorPembayaran,""), "") ->  | C158: =IFERROR(IF(PinjamanBelumDibayar*PinjamanAman,TanggalPembayaran,TanggalMulaiPinjaman), TanggalMulaiPinjaman) -> 2019-07-18 | D158: =IFERROR(IF(PinjamanBelumDibayar*PinjamanAman,NilaiPinjaman,""), "") ->  | E158: =IFERROR(IF(PinjamanBelumDibayar*PinjamanAman,AngsuranBulanan,0), 0) -> Rp0.00 | F158: =IFERROR(IF(PinjamanBelumDibayar*PinjamanAman,Pinjaman_Pokok,0), 0) -> Rp0.00 | G158: =IFERROR(IF(PinjamanBelumDibayar*PinjamanAman,JmlBunga,0), 0) -> Rp0.00 | H158: =IFERROR(IF(PinjamanBelumDibayar*PinjamanAman,SaldoAkhir,0), 0) -> Rp0.00
B159: =IFERROR(IF(PinjamanBelumDibayar*PinjamanAman,NomorPembayaran,""), "") ->  | C159: =IFERROR(IF(PinjamanBelumDibayar*PinjamanAman,TanggalPembayaran,TanggalMulaiPinjaman), TanggalMulaiPinjaman) -> 2019-07-18 | D159: =IFERROR(IF(PinjamanBelumDibayar*PinjamanAman,NilaiPinjaman,""), "") ->  | E159: =IFERROR(IF(PinjamanBelumDibayar*PinjamanAman,AngsuranBulanan,0), 0) -> Rp0.00 | F159: =IFERROR(IF(PinjamanBelumDibayar*PinjamanAman,Pinjaman_Pokok,0), 0) -> Rp0.00 | G159: =IFERROR(IF(PinjamanBelumDibayar*PinjamanAman,JmlBunga,0), 0) -> Rp0.00 | H159: =IFERROR(IF(PinjamanBelumDibayar*PinjamanAman,SaldoAkhir,0), 0) -> Rp0.00
B160: =IFERROR(IF(PinjamanBelumDibayar*PinjamanAman,NomorPembayaran,""), "") ->  | C160: =IFERROR(IF(PinjamanBelumDibayar*PinjamanAman,TanggalPembayaran,TanggalMulaiPinjaman), TanggalMulaiPinjaman) -> 2019-07-18 | D160: =IFERROR(IF(PinjamanBelumDibayar*PinjamanAman,NilaiPinjaman,""), "") ->  | E160: =IFERROR(IF(PinjamanBelumDibayar*PinjamanAman,AngsuranBulanan,0), 0) -> Rp0.00 | F160: =IFERROR(IF(PinjamanBelumDibayar*PinjamanAman,Pinjaman_Pokok,0), 0) -> Rp0.00 | G160: =IFERROR(IF(PinjamanBelumDibayar*PinjamanAman,JmlBunga,0), 0) -> Rp0.00 | H160: =IFERROR(IF(PinjamanBelumDibayar*PinjamanAman,SaldoAkhir,0), 0) -> Rp0.00
B161: =IFERROR(IF(PinjamanBelumDibayar*PinjamanAman,NomorPembayaran,""), "") ->  | C161: =IFERROR(IF(PinjamanBelumDibayar*PinjamanAman,TanggalPembayaran,TanggalMulaiPinjaman), TanggalMulaiPinjaman) -> 2019-07-18 | D161: =IFERROR(IF(PinjamanBelumDibayar*PinjamanAman,NilaiPinjaman,""), "") ->  | E161: =IFERROR(IF(PinjamanBelumDibayar*PinjamanAman,AngsuranBulanan,0), 0) -> Rp0.00 | F161: =IFERROR(IF(PinjamanBelumDibayar*PinjamanAman,Pinjaman_Pokok,0), 0) -> Rp0.00 | G161: =IFERROR(IF(PinjamanBelumDibayar*PinjamanAman,JmlBunga,0), 0) -> Rp0.00 | H161: =IFERROR(IF(PinjamanBelumDibayar*PinjamanAman,SaldoAkhir,0), 0) -> Rp0.00
B162: =IFERROR(IF(PinjamanBelumDibayar*PinjamanAman,NomorPembayaran,""), "") ->  | C162: =IFERROR(IF(PinjamanBelumDibayar*PinjamanAman,TanggalPembayaran,TanggalMulaiPinjaman), TanggalMulaiPinjaman) -> 2019-07-18 | D162: =IFERROR(IF(PinjamanBelumDibayar*PinjamanAman,NilaiPinjaman,""), "") ->  | E162: =IFERROR(IF(PinjamanBelumDibayar*PinjamanAman,AngsuranBulanan,0), 0) -> Rp0.00 | F162: =IFERROR(IF(PinjamanBelumDibayar*PinjamanAman,Pinjaman_Pokok,0), 0) -> Rp0.00 | G162: =IFERROR(IF(PinjamanBelumDibayar*PinjamanAman,JmlBunga,0), 0) -> Rp0.00 | H162: =IFERROR(IF(PinjamanBelumDibayar*PinjamanAman,SaldoAkhir,0), 0) -> Rp0.00
B163: =IFERROR(IF(PinjamanBelumDibayar*PinjamanAman,NomorPembayaran,""), "") ->  | C163: =IFERROR(IF(PinjamanBelumDibayar*PinjamanAman,TanggalPembayaran,TanggalMulaiPinjaman), TanggalMulaiPinjaman) -> 2019-07-18 | D163: =IFERROR(IF(PinjamanBelumDibayar*PinjamanAman,NilaiPinjaman,""), "") ->  | E163: =IFERROR(IF(PinjamanBelumDibayar*PinjamanAman,AngsuranBulanan,0), 0) -> Rp0.00 | F163: =IFERROR(IF(PinjamanBelumDibayar*PinjamanAman,Pinjaman_Pokok,0), 0) -> Rp0.00 | G163: =IFERROR(IF(PinjamanBelumDibayar*PinjamanAman,JmlBunga,0), 0) -> Rp0.00 | H163: =IFERROR(IF(PinjamanBelumDibayar*PinjamanAman,SaldoAkhir,0), 0) -> Rp0.00
B164: =IFERROR(IF(PinjamanBelumDibayar*PinjamanAman,NomorPembayaran,""), "") ->  | C164: =IFERROR(IF(PinjamanBelumDibayar*PinjamanAman,TanggalPembayaran,TanggalMulaiPinjaman), TanggalMulaiPinjaman) -> 2019-07-18 | D164: =IFERROR(IF(PinjamanBelumDibayar*PinjamanAman,NilaiPinjaman,""), "") ->  | E164: =IFERROR(IF(PinjamanBelumDibayar*PinjamanAman,AngsuranBulanan,0), 0) -> Rp0.00 | F164: =IFERROR(IF(PinjamanBelumDibayar*PinjamanAman,Pinjaman_Pokok,0), 0) -> Rp0.00 | G164: =IFERROR(IF(PinjamanBelumDibayar*PinjamanAman,JmlBunga,0), 0) -> Rp0.00 | H164: =IFERROR(IF(PinjamanBelumDibayar*PinjamanAman,SaldoAkhir,0), 0) -> Rp0.00
B165: =IFERROR(IF(PinjamanBelumDibayar*PinjamanAman,NomorPembayaran,""), "") ->  | C165: =IFERROR(IF(PinjamanBelumDibayar*PinjamanAman,TanggalPembayaran,TanggalMulaiPinjaman), TanggalMulaiPinjaman) -> 2019-07-18 | D165: =IFERROR(IF(PinjamanBelumDibayar*PinjamanAman,NilaiPinjaman,""), "") ->  | E165: =IFERROR(IF(PinjamanBelumDibayar*PinjamanAman,AngsuranBulanan,0), 0) -> Rp0.00 | F165: =IFERROR(IF(PinjamanBelumDibayar*PinjamanAman,Pinjaman_Pokok,0), 0) -> Rp0.00 | G165: =IFERROR(IF(PinjamanBelumDibayar*PinjamanAman,JmlBunga,0), 0) -> Rp0.00 | H165: =IFERROR(IF(PinjamanBelumDibayar*PinjamanAman,SaldoAkhir,0), 0) -> Rp0.00
B166: =IFERROR(IF(PinjamanBelumDibayar*PinjamanAman,NomorPembayaran,""), "") ->  | C166: =IFERROR(IF(PinjamanBelumDibayar*PinjamanAman,TanggalPembayaran,TanggalMulaiPinjaman), TanggalMulaiPinjaman) -> 2019-07-18 | D166: =IFERROR(IF(PinjamanBelumDibayar*PinjamanAman,NilaiPinjaman,""), "") ->  | E166: =IFERROR(IF(PinjamanBelumDibayar*PinjamanAman,AngsuranBulanan,0), 0) -> Rp0.00 | F166: =IFERROR(IF(PinjamanBelumDibayar*PinjamanAman,Pinjaman_Pokok,0), 0) -> Rp0.00 | G166: =IFERROR(IF(PinjamanBelumDibayar*PinjamanAman,JmlBunga,0), 0) -> Rp0.00 | H166: =IFERROR(IF(PinjamanBelumDibayar*PinjamanAman,SaldoAkhir,0), 0) -> Rp0.00
B167: =IFERROR(IF(PinjamanBelumDibayar*PinjamanAman,NomorPembayaran,""), "") ->  | C167: =IFERROR(IF(PinjamanBelumDibayar*PinjamanAman,TanggalPembayaran,TanggalMulaiPinjaman), TanggalMulaiPinjaman) -> 2019-07-18 | D167: =IFERROR(IF(PinjamanBelumDibayar*PinjamanAman,NilaiPinjaman,""), "") ->  | E167: =IFERROR(IF(PinjamanBelumDibayar*PinjamanAman,AngsuranBulanan,0), 0) -> Rp0.00 | F167: =IFERROR(IF(PinjamanBelumDibayar*PinjamanAman,Pinjaman_Pokok,0), 0) -> Rp0.00 | G167: =IFERROR(IF(PinjamanBelumDibayar*PinjamanAman,JmlBunga,0), 0) -> Rp0.00 | H167: =IFERROR(IF(PinjamanBelumDibayar*PinjamanAman,SaldoAkhir,0), 0) -> Rp0.00
B168: =IFERROR(IF(PinjamanBelumDibayar*PinjamanAman,NomorPembayaran,""), "") ->  | C168: =IFERROR(IF(PinjamanBelumDibayar*PinjamanAman,TanggalPembayaran,TanggalMulaiPinjaman), TanggalMulaiPinjaman) -> 2019-07-18 | D168: =IFERROR(IF(PinjamanBelumDibayar*PinjamanAman,NilaiPinjaman,""), "") ->  | E168: =IFERROR(IF(PinjamanBelumDibayar*PinjamanAman,AngsuranBulanan,0), 0) -> Rp0.00 | F168: =IFERROR(IF(PinjamanBelumDibayar*PinjamanAman,Pinjaman_Pokok,0), 0) -> Rp0.00 | G168: =IFERROR(IF(PinjamanBelumDibayar*PinjamanAman,JmlBunga,0), 0) -> Rp0.00 | H168: =IFERROR(IF(PinjamanBelumDibayar*PinjamanAman,SaldoAkhir,0), 0) -> Rp0.00
B169: =IFERROR(IF(PinjamanBelumDibayar*PinjamanAman,NomorPembayaran,""), "") ->  | C169: =IFERROR(IF(PinjamanBelumDibayar*PinjamanAman,TanggalPembayaran,TanggalMulaiPinjaman), TanggalMulaiPinjaman) -> 2019-07-18 | D169: =IFERROR(IF(PinjamanBelumDibayar*PinjamanAman,NilaiPinjaman,""), "") ->  | E169: =IFERROR(IF(PinjamanBelumDibayar*PinjamanAman,AngsuranBulanan,0), 0) -> Rp0.00 | F169: =IFERROR(IF(PinjamanBelumDibayar*PinjamanAman,Pinjaman_Pokok,0), 0) -> Rp0.00 | G169: =IFERROR(IF(PinjamanBelumDibayar*PinjamanAman,JmlBunga,0), 0) -> Rp0.00 | H169: =IFERROR(IF(PinjamanBelumDibayar*PinjamanAman,SaldoAkhir,0), 0) -> Rp0.00
B170: =IFERROR(IF(PinjamanBelumDibayar*PinjamanAman,NomorPembayaran,""), "") ->  | C170: =IFERROR(IF(PinjamanBelumDibayar*PinjamanAman,TanggalPembayaran,TanggalMulaiPinjaman), TanggalMulaiPinjaman) -> 2019-07-18 | D170: =IFERROR(IF(PinjamanBelumDibayar*PinjamanAman,NilaiPinjaman,""), "") ->  | E170: =IFERROR(IF(PinjamanBelumDibayar*PinjamanAman,AngsuranBulanan,0), 0) -> Rp0.00 | F170: =IFERROR(IF(PinjamanBelumDibayar*PinjamanAman,Pinjaman_Pokok,0), 0) -> Rp0.00 | G170: =IFERROR(IF(PinjamanBelumDibayar*PinjamanAman,JmlBunga,0), 0) -> Rp0.00 | H170: =IFERROR(IF(PinjamanBelumDibayar*PinjamanAman,SaldoAkhir,0), 0) -> Rp0.00
B171: =IFERROR(IF(PinjamanBelumDibayar*PinjamanAman,NomorPembayaran,""), "") ->  | C171: =IFERROR(IF(PinjamanBelumDibayar*PinjamanAman,TanggalPembayaran,TanggalMulaiPinjaman), TanggalMulaiPinjaman) -> 2019-07-18 | D171: =IFERROR(IF(PinjamanBelumDibayar*PinjamanAman,NilaiPinjaman,""), "") ->  | E171: =IFERROR(IF(PinjamanBelumDibayar*PinjamanAman,AngsuranBulanan,0), 0) -> Rp0.00 | F171: =IFERROR(IF(PinjamanBelumDibayar*PinjamanAman,Pinjaman_Pokok,0), 0) -> Rp0.00 | G171: =IFERROR(IF(PinjamanBelumDibayar*PinjamanAman,JmlBunga,0), 0) -> Rp0.00 | H171: =IFERROR(IF(PinjamanBelumDibayar*PinjamanAman,SaldoAkhir,0), 0) -> Rp0.00
B172: =IFERROR(IF(PinjamanBelumDibayar*PinjamanAman,NomorPembayaran,""), "") ->  | C172: =IFERROR(IF(PinjamanBelumDibayar*PinjamanAman,TanggalPembayaran,TanggalMulaiPinjaman), TanggalMulaiPinjaman) -> 2019-07-18 | D172: =IFERROR(IF(PinjamanBelumDibayar*PinjamanAman,NilaiPinjaman,""), "") ->  | E172: =IFERROR(IF(PinjamanBelumDibayar*PinjamanAman,AngsuranBulanan,0), 0) -> Rp0.00 | F172: =IFERROR(IF(PinjamanBelumDibayar*PinjamanAman,Pinjaman_Pokok,0), 0) -> Rp0.00 | G172: =IFERROR(IF(PinjamanBelumDibayar*PinjamanAman,JmlBunga,0), 0) -> Rp0.00 | H172: =IFERROR(IF(PinjamanBelumDibayar*PinjamanAman,SaldoAkhir,0), 0) -> Rp0.00
B173: =IFERROR(IF(PinjamanBelumDibayar*PinjamanAman,NomorPembayaran,""), "") ->  | C173: =IFERROR(IF(PinjamanBelumDibayar*PinjamanAman,TanggalPembayaran,TanggalMulaiPinjaman), TanggalMulaiPinjaman) -> 2019-07-18 | D173: =IFERROR(IF(PinjamanBelumDibayar*PinjamanAman,NilaiPinjaman,""), "") ->  | E173: =IFERROR(IF(PinjamanBelumDibayar*PinjamanAman,AngsuranBulanan,0), 0) -> Rp0.00 | F173: =IFERROR(IF(PinjamanBelumDibayar*PinjamanAman,Pinjaman_Pokok,0), 0) -> Rp0.00 | G173: =IFERROR(IF(PinjamanBelumDibayar*PinjamanAman,JmlBunga,0), 0) -> Rp0.00 | H173: =IFERROR(IF(PinjamanBelumDibayar*PinjamanAman,SaldoAkhir,0), 0) -> Rp0.00
B174: =IFERROR(IF(PinjamanBelumDibayar*PinjamanAman,NomorPembayaran,""), "") ->  | C174: =IFERROR(IF(PinjamanBelumDibayar*PinjamanAman,TanggalPembayaran,TanggalMulaiPinjaman), TanggalMulaiPinjaman) -> 2019-07-18 | D174: =IFERROR(IF(PinjamanBelumDibayar*PinjamanAman,NilaiPinjaman,""), "") ->  | E174: =IFERROR(IF(PinjamanBelumDibayar*PinjamanAman,AngsuranBulanan,0), 0) -> Rp0.00 | F174: =IFERROR(IF(PinjamanBelumDibayar*PinjamanAman,Pinjaman_Pokok,0), 0) -> Rp0.00 | G174: =IFERROR(IF(PinjamanBelumDibayar*PinjamanAman,JmlBunga,0), 0) -> Rp0.00 | H174: =IFERROR(IF(PinjamanBelumDibayar*PinjamanAman,SaldoAkhir,0), 0) -> Rp0.00
B175: =IFERROR(IF(PinjamanBelumDibayar*PinjamanAman,NomorPembayaran,""), "") ->  | C175: =IFERROR(IF(PinjamanBelumDibayar*PinjamanAman,TanggalPembayaran,TanggalMulaiPinjaman), TanggalMulaiPinjaman) -> 2019-07-18 | D175: =IFERROR(IF(PinjamanBelumDibayar*PinjamanAman,NilaiPinjaman,""), "") ->  | E175: =IFERROR(IF(PinjamanBelumDibayar*PinjamanAman,AngsuranBulanan,0), 0) -> Rp0.00 | F175: =IFERROR(IF(PinjamanBelumDibayar*PinjamanAman,Pinjaman_Pokok,0), 0) -> Rp0.00 | G175: =IFERROR(IF(PinjamanBelumDibayar*PinjamanAman,JmlBunga,0), 0) -> Rp0.00 | H175: =IFERROR(IF(PinjamanBelumDibayar*PinjamanAman,SaldoAkhir,0), 0) -> Rp0.00
B176: =IFERROR(IF(PinjamanBelumDibayar*PinjamanAman,NomorPembayaran,""), "") ->  | C176: =IFERROR(IF(PinjamanBelumDibayar*PinjamanAman,TanggalPembayaran,TanggalMulaiPinjaman), TanggalMulaiPinjaman) -> 2019-07-18 | D176: =IFERROR(IF(PinjamanBelumDibayar*PinjamanAman,NilaiPinjaman,""), "") ->  | E176: =IFERROR(IF(PinjamanBelumDibayar*PinjamanAman,AngsuranBulanan,0), 0) -> Rp0.00 | F176: =IFERROR(IF(PinjamanBelumDibayar*PinjamanAman,Pinjaman_Pokok,0), 0) -> Rp0.00 | G176: =IFERROR(IF(PinjamanBelumDibayar*PinjamanAman,JmlBunga,0), 0) -> Rp0.00 | H176: =IFERROR(IF(PinjamanBelumDibayar*PinjamanAman,SaldoAkhir,0), 0) -> Rp0.00
B177: =IFERROR(IF(PinjamanBelumDibayar*PinjamanAman,NomorPembayaran,""), "") ->  | C177: =IFERROR(IF(PinjamanBelumDibayar*PinjamanAman,TanggalPembayaran,TanggalMulaiPinjaman), TanggalMulaiPinjaman) -> 2019-07-18 | D177: =IFERROR(IF(PinjamanBelumDibayar*PinjamanAman,NilaiPinjaman,""), "") ->  | E177: =IFERROR(IF(PinjamanBelumDibayar*PinjamanAman,AngsuranBulanan,0), 0) -> Rp0.00 | F177: =IFERROR(IF(PinjamanBelumDibayar*PinjamanAman,Pinjaman_Pokok,0), 0) -> Rp0.00 | G177: =IFERROR(IF(PinjamanBelumDibayar*PinjamanAman,JmlBunga,0), 0) -> Rp0.00 | H177: =IFERROR(IF(PinjamanBelumDibayar*PinjamanAman,SaldoAkhir,0), 0) -> Rp0.00
B178: =IFERROR(IF(PinjamanBelumDibayar*PinjamanAman,NomorPembayaran,""), "") ->  | C178: =IFERROR(IF(PinjamanBelumDibayar*PinjamanAman,TanggalPembayaran,TanggalMulaiPinjaman), TanggalMulaiPinjaman) -> 2019-07-18 | D178: =IFERROR(IF(PinjamanBelumDibayar*PinjamanAman,NilaiPinjaman,""), "") ->  | E178: =IFERROR(IF(PinjamanBelumDibayar*PinjamanAman,AngsuranBulanan,0), 0) -> Rp0.00 | F178: =IFERROR(IF(PinjamanBelumDibayar*PinjamanAman,Pinjaman_Pokok,0), 0) -> Rp0.00 | G178: =IFERROR(IF(PinjamanBelumDibayar*PinjamanAman,JmlBunga,0), 0) -> Rp0.00 | H178: =IFERROR(IF(PinjamanBelumDibayar*PinjamanAman,SaldoAkhir,0), 0) -> Rp0.00
B179: =IFERROR(IF(PinjamanBelumDibayar*PinjamanAman,NomorPembayaran,""), "") ->  | C179: =IFERROR(IF(PinjamanBelumDibayar*PinjamanAman,TanggalPembayaran,TanggalMulaiPinjaman), TanggalMulaiPinjaman) -> 2019-07-18 | D179: =IFERROR(IF(PinjamanBelumDibayar*PinjamanAman,NilaiPinjaman,""), "") ->  | E179: =IFERROR(IF(PinjamanBelumDibayar*PinjamanAman,AngsuranBulanan,0), 0) -> Rp0.00 | F179: =IFERROR(IF(PinjamanBelumDibayar*PinjamanAman,Pinjaman_Pokok,0), 0) -> Rp0.00 | G179: =IFERROR(IF(PinjamanBelumDibayar*PinjamanAman,JmlBunga,0), 0) -> Rp0.00 | H179: =IFERROR(IF(PinjamanBelumDibayar*PinjamanAman,SaldoAkhir,0), 0) -> Rp0.00
B180: =IFERROR(IF(PinjamanBelumDibayar*PinjamanAman,NomorPembayaran,""), "") ->  | C180: =IFERROR(IF(PinjamanBelumDibayar*PinjamanAman,TanggalPembayaran,TanggalMulaiPinjaman), TanggalMulaiPinjaman) -> 2019-07-18 | D180: =IFERROR(IF(PinjamanBelumDibayar*PinjamanAman,NilaiPinjaman,""), "") ->  | E180: =IFERROR(IF(PinjamanBelumDibayar*PinjamanAman,AngsuranBulanan,0), 0) -> Rp0.00 | F180: =IFERROR(IF(PinjamanBelumDibayar*PinjamanAman,Pinjaman_Pokok,0), 0) -> Rp0.00 | G180: =IFERROR(IF(PinjamanBelumDibayar*PinjamanAman,JmlBunga,0), 0) -> Rp0.00 | H180: =IFERROR(IF(PinjamanBelumDibayar*PinjamanAman,SaldoAkhir,0), 0) -> Rp0.00
B181: =IFERROR(IF(PinjamanBelumDibayar*PinjamanAman,NomorPembayaran,""), "") ->  | C181: =IFERROR(IF(PinjamanBelumDibayar*PinjamanAman,TanggalPembayaran,TanggalMulaiPinjaman), TanggalMulaiPinjaman) -> 2019-07-18 | D181: =IFERROR(IF(PinjamanBelumDibayar*PinjamanAman,NilaiPinjaman,""), "") ->  | E181: =IFERROR(IF(PinjamanBelumDibayar*PinjamanAman,AngsuranBulanan,0), 0) -> Rp0.00 | F181: =IFERROR(IF(PinjamanBelumDibayar*PinjamanAman,Pinjaman_Pokok,0), 0) -> Rp0.00 | G181: =IFERROR(IF(PinjamanBelumDibayar*PinjamanAman,JmlBunga,0), 0) -> Rp0.00 | H181: =IFERROR(IF(PinjamanBelumDibayar*PinjamanAman,SaldoAkhir,0), 0) -> Rp0.00
B182: =IFERROR(IF(PinjamanBelumDibayar*PinjamanAman,NomorPembayaran,""), "") ->  | C182: =IFERROR(IF(PinjamanBelumDibayar*PinjamanAman,TanggalPembayaran,TanggalMulaiPinjaman), TanggalMulaiPinjaman) -> 2019-07-18 | D182: =IFERROR(IF(PinjamanBelumDibayar*PinjamanAman,NilaiPinjaman,""), "") ->  | E182: =IFERROR(IF(PinjamanBelumDibayar*PinjamanAman,AngsuranBulanan,0), 0) -> Rp0.00 | F182: =IFERROR(IF(PinjamanBelumDibayar*PinjamanAman,Pinjaman_Pokok,0), 0) -> Rp0.00 | G182: =IFERROR(IF(PinjamanBelumDibayar*PinjamanAman,JmlBunga,0), 0) -> Rp0.00 | H182: =IFERROR(IF(PinjamanBelumDibayar*PinjamanAman,SaldoAkhir,0), 0) -> Rp0.00
B183: =IFERROR(IF(PinjamanBelumDibayar*PinjamanAman,NomorPembayaran,""), "") ->  | C183: =IFERROR(IF(PinjamanBelumDibayar*PinjamanAman,TanggalPembayaran,TanggalMulaiPinjaman), TanggalMulaiPinjaman) -> 2019-07-18 | D183: =IFERROR(IF(PinjamanBelumDibayar*PinjamanAman,NilaiPinjaman,""), "") ->  | E183: =IFERROR(IF(PinjamanBelumDibayar*PinjamanAman,AngsuranBulanan,0), 0) -> Rp0.00 | F183: =IFERROR(IF(PinjamanBelumDibayar*PinjamanAman,Pinjaman_Pokok,0), 0) -> Rp0.00 | G183: =IFERROR(IF(PinjamanBelumDibayar*PinjamanAman,JmlBunga,0), 0) -> Rp0.00 | H183: =IFERROR(IF(PinjamanBelumDibayar*PinjamanAman,SaldoAkhir,0), 0) -> Rp0.00
B184: =IFERROR(IF(PinjamanBelumDibayar*PinjamanAman,NomorPembayaran,""), "") ->  | C184: =IFERROR(IF(PinjamanBelumDibayar*PinjamanAman,TanggalPembayaran,TanggalMulaiPinjaman), TanggalMulaiPinjaman) -> 2019-07-18 | D184: =IFERROR(IF(PinjamanBelumDibayar*PinjamanAman,NilaiPinjaman,""), "") ->  | E184: =IFERROR(IF(PinjamanBelumDibayar*PinjamanAman,AngsuranBulanan,0), 0) -> Rp0.00 | F184: =IFERROR(IF(PinjamanBelumDibayar*PinjamanAman,Pinjaman_Pokok,0), 0) -> Rp0.00 | G184: =IFERROR(IF(PinjamanBelumDibayar*PinjamanAman,JmlBunga,0), 0) -> Rp0.00 | H184: =IFERROR(IF(PinjamanBelumDibayar*PinjamanAman,SaldoAkhir,0), 0) -> Rp0.00
B185: =IFERROR(IF(PinjamanBelumDibayar*PinjamanAman,NomorPembayaran,""), "") ->  | C185: =IFERROR(IF(PinjamanBelumDibayar*PinjamanAman,TanggalPembayaran,TanggalMulaiPinjaman), TanggalMulaiPinjaman) -> 2019-07-18 | D185: =IFERROR(IF(PinjamanBelumDibayar*PinjamanAman,NilaiPinjaman,""), "") ->  | E185: =IFERROR(IF(PinjamanBelumDibayar*PinjamanAman,AngsuranBulanan,0), 0) -> Rp0.00 | F185: =IFERROR(IF(PinjamanBelumDibayar*PinjamanAman,Pinjaman_Pokok,0), 0) -> Rp0.00 | G185: =IFERROR(IF(PinjamanBelumDibayar*PinjamanAman,JmlBunga,0), 0) -> Rp0.00 | H185: =IFERROR(IF(PinjamanBelumDibayar*PinjamanAman,SaldoAkhir,0), 0) -> Rp0.00
B186: =IFERROR(IF(PinjamanBelumDibayar*PinjamanAman,NomorPembayaran,""), "") ->  | C186: =IFERROR(IF(PinjamanBelumDibayar*PinjamanAman,TanggalPembayaran,TanggalMulaiPinjaman), TanggalMulaiPinjaman) -> 2019-07-18 | D186: =IFERROR(IF(PinjamanBelumDibayar*PinjamanAman,NilaiPinjaman,""), "") ->  | E186: =IFERROR(IF(PinjamanBelumDibayar*PinjamanAman,AngsuranBulanan,0), 0) -> Rp0.00 | F186: =IFERROR(IF(PinjamanBelumDibayar*PinjamanAman,Pinjaman_Pokok,0), 0) -> Rp0.00 | G186: =IFERROR(IF(PinjamanBelumDibayar*PinjamanAman,JmlBunga,0), 0) -> Rp0.00 | H186: =IFERROR(IF(PinjamanBelumDibayar*PinjamanAman,SaldoAkhir,0), 0) -> Rp0.00
B187: =IFERROR(IF(PinjamanBelumDibayar*PinjamanAman,NomorPembayaran,""), "") ->  | C187: =IFERROR(IF(PinjamanBelumDibayar*PinjamanAman,TanggalPembayaran,TanggalMulaiPinjaman), TanggalMulaiPinjaman) -> 2019-07-18 | D187: =IFERROR(IF(PinjamanBelumDibayar*PinjamanAman,NilaiPinjaman,""), "") ->  | E187: =IFERROR(IF(PinjamanBelumDibayar*PinjamanAman,AngsuranBulanan,0), 0) -> Rp0.00 | F187: =IFERROR(IF(PinjamanBelumDibayar*PinjamanAman,Pinjaman_Pokok,0), 0) -> Rp0.00 | G187: =IFERROR(IF(PinjamanBelumDibayar*PinjamanAman,JmlBunga,0), 0) -> Rp0.00 | H187: =IFERROR(IF(PinjamanBelumDibayar*PinjamanAman,SaldoAkhir,0), 0) -> Rp0.00
B188: =IFERROR(IF(PinjamanBelumDibayar*PinjamanAman,NomorPembayaran,""), "") ->  | C188: =IFERROR(IF(PinjamanBelumDibayar*PinjamanAman,TanggalPembayaran,TanggalMulaiPinjaman), TanggalMulaiPinjaman) -> 2019-07-18 | D188: =IFERROR(IF(PinjamanBelumDibayar*PinjamanAman,NilaiPinjaman,""), "") ->  | E188: =IFERROR(IF(PinjamanBelumDibayar*PinjamanAman,AngsuranBulanan,0), 0) -> Rp0.00 | F188: =IFERROR(IF(PinjamanBelumDibayar*PinjamanAman,Pinjaman_Pokok,0), 0) -> Rp0.00 | G188: =IFERROR(IF(PinjamanBelumDibayar*PinjamanAman,JmlBunga,0), 0) -> Rp0.00 | H188: =IFERROR(IF(PinjamanBelumDibayar*PinjamanAman,SaldoAkhir,0), 0) -> Rp0.00
B189: =IFERROR(IF(PinjamanBelumDibayar*PinjamanAman,NomorPembayaran,""), "") ->  | C189: =IFERROR(IF(PinjamanBelumDibayar*PinjamanAman,TanggalPembayaran,TanggalMulaiPinjaman), TanggalMulaiPinjaman) -> 2019-07-18 | D189: =IFERROR(IF(PinjamanBelumDibayar*PinjamanAman,NilaiPinjaman,""), "") ->  | E189: =IFERROR(IF(PinjamanBelumDibayar*PinjamanAman,AngsuranBulanan,0), 0) -> Rp0.00 | F189: =IFERROR(IF(PinjamanBelumDibayar*PinjamanAman,Pinjaman_Pokok,0), 0) -> Rp0.00 | G189: =IFERROR(IF(PinjamanBelumDibayar*PinjamanAman,JmlBunga,0), 0) -> Rp0.00 | H189: =IFERROR(IF(PinjamanBelumDibayar*PinjamanAman,SaldoAkhir,0), 0) -> Rp0.00
B190: =IFERROR(IF(PinjamanBelumDibayar*PinjamanAman,NomorPembayaran,""), "") ->  | C190: =IFERROR(IF(PinjamanBelumDibayar*PinjamanAman,TanggalPembayaran,TanggalMulaiPinjaman), TanggalMulaiPinjaman) -> 2019-07-18 | D190: =IFERROR(IF(PinjamanBelumDibayar*PinjamanAman,NilaiPinjaman,""), "") ->  | E190: =IFERROR(IF(PinjamanBelumDibayar*PinjamanAman,AngsuranBulanan,0), 0) -> Rp0.00 | F190: =IFERROR(IF(PinjamanBelumDibayar*PinjamanAman,Pinjaman_Pokok,0), 0) -> Rp0.00 | G190: =IFERROR(IF(PinjamanBelumDibayar*PinjamanAman,JmlBunga,0), 0) -> Rp0.00 | H190: =IFERROR(IF(PinjamanBelumDibayar*PinjamanAman,SaldoAkhir,0), 0) -> Rp0.00
B191: =IFERROR(IF(PinjamanBelumDibayar*PinjamanAman,NomorPembayaran,""), "") ->  | C191: =IFERROR(IF(PinjamanBelumDibayar*PinjamanAman,TanggalPembayaran,TanggalMulaiPinjaman), TanggalMulaiPinjaman) -> 2019-07-18 | D191: =IFERROR(IF(PinjamanBelumDibayar*PinjamanAman,NilaiPinjaman,""), "") ->  | E191: =IFERROR(IF(PinjamanBelumDibayar*PinjamanAman,AngsuranBulanan,0), 0) -> Rp0.00 | F191: =IFERROR(IF(PinjamanBelumDibayar*PinjamanAman,Pinjaman_Pokok,0), 0) -> Rp0.00 | G191: =IFERROR(IF(PinjamanBelumDibayar*PinjamanAman,JmlBunga,0), 0) -> Rp0.00 | H191: =IFERROR(IF(PinjamanBelumDibayar*PinjamanAman,SaldoAkhir,0), 0) -> Rp0.00
B192: =IFERROR(IF(PinjamanBelumDibayar*PinjamanAman,NomorPembayaran,""), "") ->  | C192: =IFERROR(IF(PinjamanBelumDibayar*PinjamanAman,TanggalPembayaran,TanggalMulaiPinjaman), TanggalMulaiPinjaman) -> 2019-07-18 | D192: =IFERROR(IF(PinjamanBelumDibayar*PinjamanAman,NilaiPinjaman,""), "") ->  | E192: =IFERROR(IF(PinjamanBelumDibayar*PinjamanAman,AngsuranBulanan,0), 0) -> Rp0.00 | F192: =IFERROR(IF(PinjamanBelumDibayar*PinjamanAman,Pinjaman_Pokok,0), 0) -> Rp0.00 | G192: =IFERROR(IF(PinjamanBelumDibayar*PinjamanAman,JmlBunga,0), 0) -> Rp0.00 | H192: =IFERROR(IF(PinjamanBelumDibayar*PinjamanAman,SaldoAkhir,0), 0) -> Rp0.00
B193: =IFERROR(IF(PinjamanBelumDibayar*PinjamanAman,NomorPembayaran,""), "") ->  | C193: =IFERROR(IF(PinjamanBelumDibayar*PinjamanAman,TanggalPembayaran,TanggalMulaiPinjaman), TanggalMulaiPinjaman) -> 2019-07-18 | D193: =IFERROR(IF(PinjamanBelumDibayar*PinjamanAman,NilaiPinjaman,""), "") ->  | E193: =IFERROR(IF(PinjamanBelumDibayar*PinjamanAman,AngsuranBulanan,0), 0) -> Rp0.00 | F193: =IFERROR(IF(PinjamanBelumDibayar*PinjamanAman,Pinjaman_Pokok,0), 0) -> Rp0.00 | G193: =IFERROR(IF(PinjamanBelumDibayar*PinjamanAman,JmlBunga,0), 0) -> Rp0.00 | H193: =IFERROR(IF(PinjamanBelumDibayar*PinjamanAman,SaldoAkhir,0), 0) -> Rp0.00
B194: =IFERROR(IF(PinjamanBelumDibayar*PinjamanAman,NomorPembayaran,""), "") ->  | C194: =IFERROR(IF(PinjamanBelumDibayar*PinjamanAman,TanggalPembayaran,TanggalMulaiPinjaman), TanggalMulaiPinjaman) -> 2019-07-18 | D194: =IFERROR(IF(PinjamanBelumDibayar*PinjamanAman,NilaiPinjaman,""), "") ->  | E194: =IFERROR(IF(PinjamanBelumDibayar*PinjamanAman,AngsuranBulanan,0), 0) -> Rp0.00 | F194: =IFERROR(IF(PinjamanBelumDibayar*PinjamanAman,Pinjaman_Pokok,0), 0) -> Rp0.00 | G194: =IFERROR(IF(PinjamanBelumDibayar*PinjamanAman,JmlBunga,0), 0) -> Rp0.00 | H194: =IFERROR(IF(PinjamanBelumDibayar*PinjamanAman,SaldoAkhir,0), 0) -> Rp0.00
B195: =IFERROR(IF(PinjamanBelumDibayar*PinjamanAman,NomorPembayaran,""), "") ->  | C195: =IFERROR(IF(PinjamanBelumDibayar*PinjamanAman,TanggalPembayaran,TanggalMulaiPinjaman), TanggalMulaiPinjaman) -> 2019-07-18 | D195: =IFERROR(IF(PinjamanBelumDibayar*PinjamanAman,NilaiPinjaman,""), "") ->  | E195: =IFERROR(IF(PinjamanBelumDibayar*PinjamanAman,AngsuranBulanan,0), 0) -> Rp0.00 | F195: =IFERROR(IF(PinjamanBelumDibayar*PinjamanAman,Pinjaman_Pokok,0), 0) -> Rp0.00 | G195: =IFERROR(IF(PinjamanBelumDibayar*PinjamanAman,JmlBunga,0), 0) -> Rp0.00 | H195: =IFERROR(IF(PinjamanBelumDibayar*PinjamanAman,SaldoAkhir,0), 0) -> Rp0.00
B196: =IFERROR(IF(PinjamanBelumDibayar*PinjamanAman,NomorPembayaran,""), "") ->  | C196: =IFERROR(IF(PinjamanBelumDibayar*PinjamanAman,TanggalPembayaran,TanggalMulaiPinjaman), TanggalMulaiPinjaman) -> 2019-07-18 | D196: =IFERROR(IF(PinjamanBelumDibayar*PinjamanAman,NilaiPinjaman,""), "") ->  | E196: =IFERROR(IF(PinjamanBelumDibayar*PinjamanAman,AngsuranBulanan,0), 0) -> Rp0.00 | F196: =IFERROR(IF(PinjamanBelumDibayar*PinjamanAman,Pinjaman_Pokok,0), 0) -> Rp0.00 | G196: =IFERROR(IF(PinjamanBelumDibayar*PinjamanAman,JmlBunga,0), 0) -> Rp0.00 | H196: =IFERROR(IF(PinjamanBelumDibayar*PinjamanAman,SaldoAkhir,0), 0) -> Rp0.00
B197: =IFERROR(IF(PinjamanBelumDibayar*PinjamanAman,NomorPembayaran,""), "") ->  | C197: =IFERROR(IF(PinjamanBelumDibayar*PinjamanAman,TanggalPembayaran,TanggalMulaiPinjaman), TanggalMulaiPinjaman) -> 2019-07-18 | D197: =IFERROR(IF(PinjamanBelumDibayar*PinjamanAman,NilaiPinjaman,""), "") ->  | E197: =IFERROR(IF(PinjamanBelumDibayar*PinjamanAman,AngsuranBulanan,0), 0) -> Rp0.00 | F197: =IFERROR(IF(PinjamanBelumDibayar*PinjamanAman,Pinjaman_Pokok,0), 0) -> Rp0.00 | G197: =IFERROR(IF(PinjamanBelumDibayar*PinjamanAman,JmlBunga,0), 0) -> Rp0.00 | H197: =IFERROR(IF(PinjamanBelumDibayar*PinjamanAman,SaldoAkhir,0), 0) -> Rp0.00
B198: =IFERROR(IF(PinjamanBelumDibayar*PinjamanAman,NomorPembayaran,""), "") ->  | C198: =IFERROR(IF(PinjamanBelumDibayar*PinjamanAman,TanggalPembayaran,TanggalMulaiPinjaman), TanggalMulaiPinjaman) -> 2019-07-18 | D198: =IFERROR(IF(PinjamanBelumDibayar*PinjamanAman,NilaiPinjaman,""), "") ->  | E198: =IFERROR(IF(PinjamanBelumDibayar*PinjamanAman,AngsuranBulanan,0), 0) -> Rp0.00 | F198: =IFERROR(IF(PinjamanBelumDibayar*PinjamanAman,Pinjaman_Pokok,0), 0) -> Rp0.00 | G198: =IFERROR(IF(PinjamanBelumDibayar*PinjamanAman,JmlBunga,0), 0) -> Rp0.00 | H198: =IFERROR(IF(PinjamanBelumDibayar*PinjamanAman,SaldoAkhir,0), 0) -> Rp0.00
B199: =IFERROR(IF(PinjamanBelumDibayar*PinjamanAman,NomorPembayaran,""), "") ->  | C199: =IFERROR(IF(PinjamanBelumDibayar*PinjamanAman,TanggalPembayaran,TanggalMulaiPinjaman), TanggalMulaiPinjaman) -> 2019-07-18 | D199: =IFERROR(IF(PinjamanBelumDibayar*PinjamanAman,NilaiPinjaman,""), "") ->  | E199: =IFERROR(IF(PinjamanBelumDibayar*PinjamanAman,AngsuranBulanan,0), 0) -> Rp0.00 | F199: =IFERROR(IF(PinjamanBelumDibayar*PinjamanAman,Pinjaman_Pokok,0), 0) -> Rp0.00 | G199: =IFERROR(IF(PinjamanBelumDibayar*PinjamanAman,JmlBunga,0), 0) -> Rp0.00 | H199: =IFERROR(IF(PinjamanBelumDibayar*PinjamanAman,SaldoAkhir,0), 0) -> Rp0.00
B200: =IFERROR(IF(PinjamanBelumDibayar*PinjamanAman,NomorPembayaran,""), "") ->  | C200: =IFERROR(IF(PinjamanBelumDibayar*PinjamanAman,TanggalPembayaran,TanggalMulaiPinjaman), TanggalMulaiPinjaman) -> 2019-07-18 | D200: =IFERROR(IF(PinjamanBelumDibayar*PinjamanAman,NilaiPinjaman,""), "") ->  | E200: =IFERROR(IF(PinjamanBelumDibayar*PinjamanAman,AngsuranBulanan,0), 0) -> Rp0.00 | F200: =IFERROR(IF(PinjamanBelumDibayar*PinjamanAman,Pinjaman_Pokok,0), 0) -> Rp0.00 | G200: =IFERROR(IF(PinjamanBelumDibayar*PinjamanAman,JmlBunga,0), 0) -> Rp0.00 | H200: =IFERROR(IF(PinjamanBelumDibayar*PinjamanAman,SaldoAkhir,0), 0) -> Rp0.00
B201: =IFERROR(IF(PinjamanBelumDibayar*PinjamanAman,NomorPembayaran,""), "") ->  | C201: =IFERROR(IF(PinjamanBelumDibayar*PinjamanAman,TanggalPembayaran,TanggalMulaiPinjaman), TanggalMulaiPinjaman) -> 2019-07-18 | D201: =IFERROR(IF(PinjamanBelumDibayar*PinjamanAman,NilaiPinjaman,""), "") ->  | E201: =IFERROR(IF(PinjamanBelumDibayar*PinjamanAman,AngsuranBulanan,0), 0) -> Rp0.00 | F201: =IFERROR(IF(PinjamanBelumDibayar*PinjamanAman,Pinjaman_Pokok,0), 0) -> Rp0.00 | G201: =IFERROR(IF(PinjamanBelumDibayar*PinjamanAman,JmlBunga,0), 0) -> Rp0.00 | H201: =IFERROR(IF(PinjamanBelumDibayar*PinjamanAman,SaldoAkhir,0), 0) -> Rp0.00
... 175 more rows
